Workbook

Sheet Summary- Detailed
A2: Puget Sound Energy
A3: Power Cost Adjustment Summary
A6: Actual Costs and Disallowance as recorded through the PCA Mechanism
D7: Actuals | F7: Baseline | H7: Difference (A) | J7: Wholesale Customer | L7: Imbalance for Sharing | O7: Company per PCA | Q7: Customer per PCA | S7: Total | U7: Interest on Customer | W7: Total Customer per PCA | Z7: Tenaska Disallowance Reserve
A8: PCA Year (B) | D8: Monthly | E8: Cumulative | F8: Baseline | G8: Cumulative | H8: Monthly | I8: Cumulative | J8: Monthly | K8: Cumulative | L8: Monthly | M8: PCA Period | N8: Cumulative | O8: Monthly (A) | P8: Cumulative (A) | Q8: Monthly (A) | R8: Cumulative (A) | S8: Monthly Monthly Difference (A) | T8: Cumulative Difference (A) | U8: Monthly (A) | V8: Cumulative (A) | W8: Monthly (A) | X8: Cumulative (A) | Z8: Monthly | AA8: Cumulative
A10: 1 | B10: 2002-07-01 | D10: 58042049 | E10: =D10 -> 58042049 | F10: 61616393 | G10: =F10 -> 61616393 | H10: =D10-F10 -> -3574344 | I10: =E10-G10 -> -3574344 | J10: 1445.449648 | K10: =J10 -> 1445.449648 | L10: =H10+J10 -> -3572898.55 | M10: =L10 -> -3572898.55 | N10: =M10 -> -3572898.55 | O10: -3572898.55 | P10: =O10 -> -3572898.55 | Q10: 0 | R10: 0 | S10: =O10+Q10 -> -3572898.55 | T10: =S10 -> -3572898.55 | U10: 0 | V10: 0 | W10: 0 | X10: 0 | Z10: 0 | AA10: 0
A11: 1 | B11: 2002-08-01 | D11: 61026340 | E11: =D11+E10 -> 119068389 | F11: 62377208 | G11: =F11+G10 -> 123993601 | H11: -1350868 | I11: -4925212 | J11: 546.711532 | K11: =J11+K10 -> 1992.16118 | L11: -1350321.288 | M11: =M10+L11 -> -4923219.839 | N11: =N10+L11 -> -4923219.839 | O11: -1350321.288 | P11: =O11+P10 -> -4923219.839 | Q11: 0 | R11: 0 | S11: -1350321.288 | T11: =S11+T10 -> -4923219.839 | U11: 0 | V11: 0 | W11: 0 | X11: 0 | Z11: 0 | AA11: 0
A12: 1 | B12: 2002-09-01 | D12: 66901856 | E12: 185970245 | F12: 60040410 | G12: 184034011 | H12: 6861446 | I12: 1936234 | J12: -2775.130916 | K12: -782.969736 | L12: 6858670.869 | M12: 1935451.03 | N12: 1935451.03 | O12: 6858670.869 | P12: 1935451.03 | Q12: 0 | R12: 0 | S12: 6858670.869 | T12: 1935451.03 | U12: 0 | V12: 0 | W12: 0 | X12: 0 | Z12: 0 | AA12: 0
A13: 1 | B13: 2002-10-01 | D13: 72973687 | E13: 258943932 | F13: 69523163 | G13: 253557174 | H13: 3450524 | I13: 5386758 | J13: -1395.284596 | K13: -2178.254332 | L13: 3449128.715 | M13: 5384579.746 | N13: 5384579.746 | O13: 3449128.715 | P13: 5384579.746 | Q13: 0 | R13: 0 | S13: 3449128.715 | T13: 5384579.746 | U13: 0 | V13: 0 | W13: 0 | X13: 0 | Z13: 0 | AA13: 0
A14: 1 | B14: 2002-11-01 | D14: 71935749 | E14: 330879681 | F14: 74375539 | G14: 327932713 | H14: -2439790 | I14: 2946968 | J14: 986.173152 | K14: -1192.08118 | L14: -2438803.827 | M14: 2945775.919 | N14: 2945775.919 | O14: -2438803.827 | P14: 2945775.919 | Q14: 0 | R14: 0 | S14: -2438803.827 | T14: 2945775.919 | U14: 0 | V14: 0 | W14: 0 | X14: 0 | Z14: 0 | AA14: 0
A15: 1 | B15: 2002-12-01 | D15: 86777286 | E15: 417656967 | F15: 84599358 | G15: 412532071 | H15: 2177928 | I15: 5124896 | J15: -881.211564 | K15: -2073.292744 | L15: 2177046.788 | M15: 5122822.707 | N15: 5122822.707 | O15: 2177046.788 | P15: 5122822.707 | Q15: 0 | R15: 0 | S15: 2177046.788 | T15: 5122822.707 | U15: 0 | V15: 0 | W15: 0 | X15: 0 | Z15: 0 | AA15: 0
A16: 1 | B16: 2003-01-01 | D16: 80343724 | E16: 498000691 | F16: 81723969 | G16: 494256040 | H16: -1380245 | I16: 3744651 | J16: 557.977204 | K16: -1515.31554 | L16: -1379687.023 | M16: 3743135.684 | N16: 3743135.684 | O16: -1379687.023 | P16: 3743135.684 | Q16: 0 | R16: 0 | S16: -1379687.023 | T16: 3743135.684 | U16: 0 | V16: 0 | W16: 0 | X16: 0 | Z16: 0 | AA16: 0
A17: 1 | B17: 2003-02-01 | D17: 80828615 | E17: 578829306 | F17: 75416275 | G17: 569672315 | H17: 5412340 | I17: 9156991 | J17: -2189.131364 | K17: -3704.446904 | L17: 5410150.869 | M17: 9153286.553 | N17: 9153286.553 | O17: 5410150.869 | P17: 9153286.553 | Q17: 0 | R17: 0 | S17: 5410150.869 | T17: 9153286.553 | U17: 0 | V17: 0 | W17: 0 | X17: 0 | Z17: 0 | AA17: 0
A18: 1 | B18: 2003-03-01 | D18: 84928004 | E18: 663757310 | F18: 77553819 | G18: 647226134 | H18: 7374185 | I18: 16531176 | J18: -2982.805148 | K18: -6687.252052 | L18: 7371202.195 | M18: 16524488.75 | N18: 16524488.75 | O18: 7371202.195 | P18: 16524488.75 | Q18: 0 | R18: 0 | S18: 7371202.195 | T18: 16524488.75 | U18: 0 | V18: 0 | W18: 0 | X18: 0 | Z18: 0 | AA18: 0
A19: 1 | B19: 2003-04-01 | D19: 67843290 | E19: 731600600 | F19: 69473916 | G19: 716700050 | H19: -1630626 | I19: 14900550 | J19: 659.693692 | K19: -6027.55836 | L19: -1629966.306 | M19: 14894522.44 | N19: 14894522.44 | O19: -1629966.306 | P19: 14894522.44 | Q19: 0 | R19: 0 | S19: -1629966.306 | T19: 14894522.44 | U19: 0 | V19: 0 | W19: 0 | X19: 0 | Z19: 0 | AA19: 0
A20: 1 | B20: 2003-05-01 | D20: 63318113 | E20: 794918713 | F20: 65590803 | G20: 782290853 | H20: -2272690 | I20: 12627860 | J20: 919.350684 | K20: -5108.207676 | L20: -2271770.649 | M20: 12622751.79 | N20: 12622751.79 | O20: -2271770.649 | P20: 12622751.79 | Q20: 283872 | R20: 0 | S20: -1987898.649 | T20: 12906623.79 | U20: 0 | V20: 0 | W20: 0 | X20: 0 | Z20: 0 | AA20: 0
A21: 1 | B21: 2003-06-01 | C21: (B1) | D21: 50046037 | E21: 844964750 | F21: 60835557 | G21: 843126410 | H21: -10789520 | I21: 1838340 | J21: -4933.65014 | K21: -10041.85782 | L21: -10794453.65 | M21: 1828298.142 | N21: 1828298.142 | O21: -10794453.65 | P21: 1828298.142 | Q21: 0 | R21: 0 | S21: -10794453.65 | T21: 2112170.142 | U21: 0 | V21: 0 | W21: 0 | X21: 0 | Z21: -22984656.66 | AA21: -22984656.66
A25: 2 | B25: 2003-07-01 | C25: (F) | D25: 65184355.35 | E25: =D25+E21 -> 910149105.4 | F25: 64630576.33 | G25: =F25+G21 -> 907756986.3 | H25: =D25-F25 -> 553779.0234 | I25: =E25-G25 -> 2392119.023 | J25: =H25*-0.000404 -> -223.7267255 | K25: =J25+K21 -> -10265.58454 | L25: =H25+J25 -> 553555.2967 | M25: =L25 -> 553555.2967 | N25: =L25+N21 -> 2381853.439 | O25: 553555.2967 | P25: =O25+P21 -> 2381853.439 | R25: 0 | S25: =O25+Q25 -> 553555.2967 | T25: =S25+T21 -> 2665725.439 | U25: 0 | V25: =U25+V21 -> 0 | W25: 0 | X25: 0 | Z25: 9795.71 | AA25: -22974860.95
A26: 2 | B26: 2003-08-01 | C26: (F) | D26: 64674166.47 | E26: =D26+E25 -> 974823271.8 | F26: 63110327.9 | G26: =F26+G25 -> 970867314.2 | H26: 1563838.573 | I26: 3955957.597 | J26: -631.7907836 | K26: =J26+K25 -> -10897.37533 | L26: 1563206.782 | M26: =M25+L26 -> 2116762.079 | N26: =N25+L26 -> 3945060.221 | O26: 1563206.782 | P26: =O26+P25 -> 3945060.221 | Q26: 0 | R26: 0 | S26: 1563206.782 | T26: =S26+T25 -> 4228932.221 | U26: 0 | V26: =U26+V25 -> 0 | W26: 0 | X26: 0 | Z26: 9489.59 | AA26: -22965371.36
A27: 2 | B27: 2003-09-01 | C27: (F) | D27: 66766678.35 | E27: 1041589950 | F27: 62478495.44 | G27: 1033345810 | H27: 4288182.916 | I27: 8244140.512 | J27: -1732.425898 | K27: -12629.80122 | L27: 4286450.49 | M27: 6403212.569 | N27: 8231510.711 | O27: 4286450.49 | P27: 8231510.711 | Q27: 0 | R27: 0 | S27: 4286450.49 | T27: 8515382.711 | U27: 0 | V27: 0 | W27: 0 | X27: 0 | Z27: 9183.47 | AA27: -22956187.89
A28: 2 | B28: 2003-10-01 | C28: (F) | D28: 74949819.35 | E28: 1116539770 | F28: 68971840.78 | G28: 1102317650 | H28: 5977978.578 | I28: 14222119.09 | J28: -2415.103345 | K28: -15044.90457 | L28: 5975563.475 | M28: 12378776.04 | N28: 14207074.19 | O28: 5975563.475 | P28: 14207074.19 | Q28: 0 | R28: 0 | S28: 5975563.475 | T28: 14490946.19 | U28: 0 | V28: 0 | W28: 0 | X28: 0 | Z28: 9087.67 | AA28: -22947100.22
A29: 2 | B29: 2003-11-01 | C29: (F) | D29: 85103091.35 | E29: 1201642861 | F29: 82180750.52 | G29: 1184498401 | H29: 2922340.831 | I29: 17144459.92 | J29: -1180.625696 | K29: -16225.53026 | L29: 2921160.205 | M29: 15299936.25 | N29: 17128234.39 | O29: 2921160.205 | P29: 17128234.39 | Q29: 0 | R29: 0 | S29: 2921160.205 | T29: 17412106.39 | U29: 0 | V29: 0 | W29: 0 | X29: 0 | Z29: 8794.52 | AA29: -22938305.7
A30: 2 | B30: 2003-12-01 | C30: (F) | D30: 92860817.35 | E30: 1294503678 | F30: 89484104.07 | G30: 1273982505 | H30: 3376713.282 | I30: 20521173.2 | J30: -1364.192166 | K30: -17589.72243 | L30: 3375349.09 | M30: 18675285.34 | N30: 20503583.48 | O30: 3375349.09 | P30: 20503583.48 | Q30: 0 | R30: 0 | S30: 3375349.09 | T30: 20787455.48 | U30: 0 | V30: 0 | W30: 0 | X30: 0 | Z30: 881777.836 | AA30: -22056527.86
A31: 2 | B31: 2004-01-01 | C31: (C1) | D31: 91025416.83 | E31: 1385529095 | F31: 90476339.79 | G31: 1364458845 | H31: 549077.0328 | I31: 21070250.24 | J31: -221.8271213 | K31: -17811.54955 | L31: 548855.2057 | M31: 19224140.54 | N31: 21052438.69 | O31: 548855.2057 | P31: 21052438.69 | Q31: 0 | R31: 0 | S31: 548855.2057 | T31: 21336310.69 | U31: 0 | V31: 0 | W31: 0 | X31: 0 | Z31: 1514353.411 | AA31: -20542174.45
A32: 2 | B32: 2004-02-01 | C32: (C1) | D32: 85168466.37 | E32: 1470697561 | F32: 78597503.3 | G32: 1443056348 | H32: 6570963.073 | I32: 27641213.31 | J32: =(H32*-0.000404)-12 -> -2666.669081 | K32: -20478.21863 | L32: 6568296.404 | M32: 25792436.95 | N32: 27620735.09 | O32: 3672077.93 | P32: 24724516.62 | Q32: 2896218.474 | R32: =Q32 -> 2896218.474 | S32: 6568296.404 | T32: 27904607.09 | U32: 317.39 | V32: 317.39 | W32: =+Q32+U32 -> 2896535.864 | X32: =W32 -> 2896535.864 | Z32: 7456337.433 | AA32: -13085837.02
A33: 2 | B33: 2004-03-01 | C33: (C1) | D33: 81261266.52 | E33: 1551958828 | F33: 77150686 | G33: 1520207034 | H33: 4110580.52 | I33: 31751793.83 | J33: =H33*-0.000404 -> -1660.67453 | K33: -22138.89316 | L33: 4108919.846 | M33: 29901356.79 | N33: 31729654.94 | O33: 2054459.923 | P33: 26778976.54 | Q33: 2054459.923 | R33: =Q33+R32 -> 4950678.397 | S33: 4108919.846 | T33: 32013526.94 | U33: 10064.35 | V33: 10381.74 | W33: =U33+Q33 -> 2064524.273 | X33: =W33+X32 -> 4961060.137 | Z33: 5073459.795 | AA33: -8012377.225
A34: 2 | B34: 2004-04-01 | C34: (C1) | D34: 68754789.72 | E34: 1620713618 | F34: 65985593.74 | G34: 1586192628 | H34: 2769195.979 | I34: 34520989.81 | J34: =H34*-0.000404 -> -1118.755175 | K34: -23257.64834 | L34: 2768077.224 | M34: 32669434.02 | N34: 34497732.16 | O34: 1384038.612 | P34: 28163015.15 | Q34: 1384038.612 | R34: =Q34+R33 -> 6334717.009 | S34: 2768077.224 | T34: 34781604.16 | U34: 16970.42 | V34: 27352.16 | W34: =U34+Q34 -> 1401009.032 | X34: =W34+X33 -> 6362069.169 | Z34: 3629625.706 | AA34: -4382751.519
A35: 2 | B35: 2004-05-01 | C35: (C1) | D35: 59043755.68 | E35: 1679757373 | F35: 65152397.16 | G35: 1651345025 | H35: -6108641.483 | I35: 28412348.33 | J35: =H35*-0.000404 -> 2467.891159 | K35: -20789.75718 | L35: -6106173.592 | M35: 26563260.43 | N35: 28391558.57 | O35: -3053086.796 | P35: 25109928.36 | Q35: -3053086.796 | R35: =Q35+R34 -> 3281630.213 | S35: -6106173.592 | T35: 28675430.57 | U35: 21186.1 | V35: 48538.26 | W35: =U35+Q35 -> -3031900.696 | X35: =W35+X34 -> 3330168.473 | Y35: (B) | Z35: -11061062 | AA35: -15443813.52
A36: 2 | B36: 2004-06-01 | C36: (C1) | D36: 67556640.61 | E36: 1747314014 | F36: 64567369.56 | G36: 1715912395 | H36: 2989271.052 | I36: 31401619.38 | J36: =H36*-0.000404 -> -1207.665505 | K36: -21997.42268 | L36: 2988063.386 | M36: 29551323.81 | N36: 31379621.95 | O36: 1494031.693 | P36: 26603960.05 | Q36: 1494031.693 | R36: =Q36+R35 -> 4775661.906 | S36: 2988063.386 | T36: 31663493.95 | U36: 11312.28 | V36: 59850.54 | W36: =U36+Q36 -> 1505343.973 | X36: =W36+X35 -> 4835512.446 | Y36: (B) | Z36: -336099.7735 | AA36: -15779913.29
A39: 3 | B39: 2004-07-01 | C39: (B) | D39: 72426753.3 | E39: =D39+E36 -> 1819740767 | F39: 69717173.45 | G39: =F39+G36 -> 1785629568 | H39: =D39-F39 -> 2709579.854 | I39: 34111199.23 | J39: -1095.670261 | K39: =K36+J39 -> -23093.09295 | L39: =H39+J39 -> 2708484.183 | M39: =L39 -> 2708484.183 | N39: =L39+N36 -> 34088106.14 | O39: 2708484.183 | P39: =O39+P36 -> 29312444.23 | Q39: 0 | R39: =+Q39+R36 -> 4775661.906 | S39: =O39+Q39 -> 2708484.183 | T39: =P39+R39 -> 34088106.14 | U39: 17238.18 | V39: =+V36+U39 -> 77088.72 | W39: =+Q39+U39 -> 17238.18 | X39: =+W39+X36 -> 4852750.626 | Z39: 2969709 | AA39: -12810204.29
A40: 3 | B40: 2004-08-01 | C40: (B) | D40: 69270006.13 | E40: =+E39+D40 -> 1889010773 | F40: 70298182.16 | G40: =+G39+F40 -> 1855927750 | H40: -1028176.024 | I40: 33083023.21 | J40: 416.3831135 | K40: =+K39+J40 -> -22676.70983 | L40: -1027759.641 | M40: =M39+L40 -> 1680724.543 | N40: =N39+L40 -> 33060346.5 | O40: -1027759.641 | P40: =+P39+O40 -> 28284684.59 | Q40: 0 | R40: =Q40+R39 -> 4775661.906 | S40: -1027759.641 | T40: 33060346.5 | U40: 15772.04 | V40: =+V39+U40 -> 92860.76 | W40: 15772.04 | X40: =+W40+X39 -> 4868522.666 | Z40: -905000 | AA40: -13715204.29
A41: 3 | B41: 2004-09-01 | C41: (B) | D41: 66899700.52 | E41: 1955910474 | F41: 66608144.81 | G41: 1922535895 | H41: 291555.7109 | I41: 33374578.92 | J41: -118.7885072 | K41: -22795.49834 | L41: 291436.9224 | M41: 1972161.465 | N41: 33351783.42 | O41: 291436.9224 | P41: 28576121.51 | Q41: 0 | R41: 4775661.906 | S41: 291436.9224 | T41: 33351783.42 | U41: 15700.81 | V41: 108561.57 | W41: 15700.81 | X41: 4884223.476 | Z41: 343993.4366 | AA41: -13371210.86
A42: 3 | B42: 2004-10-01 | C42: (B) | D42: 79322393.22 | E42: 2035232867 | F42: 74713966.51 | G42: 1997249862 | H42: 4608426.71 | I42: 37983005.63 | J42: -1863.804391 | K42: -24659.30273 | L42: 4606562.905 | M42: 6578724.37 | N42: 37958346.32 | O42: 4606562.905 | P42: 33182684.42 | Q42: 0 | R42: 4775661.906 | S42: 4606562.905 | T42: 37958346.32 | U42: 17116.5 | V42: 125678.07 | W42: 17116.5 | X42: 4901339.976 | Z42: 4515551.661 | AA42: -8855659.195
A43: 3 | B43: 2004-11-01 | C43: (B) | D43: 86147413.51 | E43: 2121380281 | F43: 84210823.54 | G43: 2081460685 | H43: 1936589.975 | I43: 39919595.6 | J43: -782.3823501 | K43: -25441.68508 | L43: 1935807.593 | M43: 8514531.963 | N43: 39894153.92 | O43: 1935807.593 | P43: 35118492.01 | Q43: 0 | R43: 4775661.906 | S43: 1935807.593 | T43: 39894153.92 | U43: 16564.36 | V43: 142242.43 | W43: 16564.36 | X43: 4917904.336 | Z43: 1741963.622 | AA43: -7113695.573
A44: 3 | B44: 2004-12-01 | C44: (B) | D44: 95992386.39 | E44: 2217372667 | F44: 93976935.94 | G44: 2175437621 | H44: 2015450.458 | I44: 41935046.06 | J44: -815.2419851 | K44: -26256.92706 | L44: 2014635.216 | M44: 10529167.18 | N44: 41908789.13 | O44: 2014635.216 | P44: 37133127.23 | Q44: 0 | R44: 4775661.906 | S44: 2014635.216 | T44: 41908789.13 | U44: 17116.5 | V44: 159358.93 | W44: 17116.5 | X44: 4935020.836 | Z44: 1756483.541 | AA44: -5357212.033
A45: 3 | B45: 2005-01-01 | C45: (B) (C) | D45: 98603104.39 | E45: 2315975771 | F45: 95513123.02 | G45: 2270950744 | H45: 3089981.375 | I45: 45025027.44 | J45: -1249.352475 | K45: -27506.27954 | L45: 3088732.022 | M45: 13617899.2 | N45: 44997521.16 | O45: 2869091.365 | P45: 40002218.59 | Q45: 219640.6575 | R45: 4995302.563 | S45: 3088732.022 | T45: 44997521.16 | U45: 19294.78 | V45: 178653.71 | W45: 238935.4375 | X45: 5173956.273 | Z45: 3183731.578 | AA45: -2173480.454
A46: 3 | B46: 2005-02-01 | C46: (B) | D46: 88725927.39 | E46: 2404701699 | F46: 83599520.5 | G46: 2354550264 | H46: =D46-F46 -> 5126406.9 | I46: =H46+I45 -> 50151434.34 | J46: -2073.068387 | K46: -29579.34793 | L46: 5124333.831 | M46: 18742233.03 | N46: =L46+N45 -> 50121854.99 | O46: 51243.33831 | P46: 40053461.93 | Q46: 5073090.493 | R46: 10068393.06 | S46: 5124333.831 | T46: 50121854.99 | U46: 18862.26 | V46: 197515.97 | W46: 5091952.753 | X46: 10265909.03 | Z46: 2173480.359 | AA46: 0
A47: 3 | B47: 2005-03-01 | C47: (B) (D) | D47: 89131538.73 | E47: 2493833238 | F47: 86090863.63 | G47: 2440641128 | H47: =D47-F47 -> 3040675.104 | I47: =H47+I46 -> 53192109.44 | J47: -1212.432742 | K47: -30791.78067 | L47: 3039462.671 | M47: 21781695.7 | N47: =L47+N46 -> 53161317.66 | O47: 21486.14819 | P47: 40074948.08 | Q47: 3017976.523 | R47: 13086369.58 | S47: 3039462.671 | T47: 53161317.66 | U47: 41011.13 | V47: 238527.1 | W47: 3058987.653 | X47: 13324896.68 | Z47: 0 | AA47: 0
A48: 3 | B48: 2005-04-01 | C48: (B) | D48: 79808213.5 | E48: 2573641451 | F48: 79275583.79 | G48: 2519916712 | H48: =D48-F48 -> 532629.7148 | I48: =H48+I47 -> 53724739.15 | J48: -211.1824048 | K48: -31002.96307 | L48: 532418.5323 | M48: 22314114.24 | N48: =L48+N47 -> 53693736.19 | O48: 2662.092662 | P48: 40077610.17 | Q48: 529756.4397 | R48: 13616126.02 | S48: 532418.5323 | T48: 53693736.19 | U48: 58983.52 | V48: 297510.62 | W48: 588739.9597 | X48: 13913636.64 | Z48: 0 | AA48: 0
A49: 3 | B49: 2005-05-01 | C49: (B) | D49: 61013758.5 | E49: 2634655210 | F49: 74193398.59 | G49: 2594110111 | H49: =D49-F49 -> -13179640.09 | I49: =H49+I48 -> 40545099.06 | J49: 5245.574598 | K49: -25757.38848 | L49: -13174394.52 | M49: 9139719.716 | N49: =L49+N48 -> 40519341.67 | O49: -4333930.407 | P49: 35743679.76 | Q49: -8840464.113 | R49: 4775661.906 | S49: -13174394.52 | T49: 40519341.67 | U49: 60007.53 | V49: 357518.15 | W49: -8780456.583 | X49: 5133180.056 | Z49: 0 | AA49: 0
A50: 3 | B50: 2005-06-01 | C50: (B) | D50: 72032908.44 | E50: 2706688118 | F50: 71214743 | G50: 2665324854 | H50: =D50-F50 -> 818165.4354 | I50: =H50+I49 -> 41363264.49 | J50: -324.5388359 | K50: -26081.92731 | L50: 817840.8965 | M50: 9957560.613 | N50: =L50+N49 -> 41337182.57 | O50: 817840.3965 | P50: 36561520.16 | Q50: 0 | R50: 4775661.906 | S50: 817840.3965 | T50: 41337182.07 | U50: 20803.57 | V50: 378321.72 | W50: 20803.57 | X50: 5153983.626 | Z50: 0 | AA50: 0
A52: 4 | B52: 2005-07-01 | D52: 68411941.76 | E52: =D52+E50 -> 2775100060 | F52: 74070384.35 | G52: =F52+G50 -> 2739395238 | H52: =D52-F52 -> -5658442.591 | I52: 35704821.9 | J52: 2252.060151 | K52: =J52+K50 -> -23829.86716 | L52: =H52+J52 -> -5656190.531 | M52: =L52 -> -5656190.531 | N52: =L52+N50 -> 35680992.04 | O52: -5656190.531 | P52: =O52+P50 -> 30905329.63 | Q52: 0 | R52: =+Q52+R50 -> 4775661.906 | S52: =O52+Q52 -> -5656190.531 | T52: =P52+R52 -> 35680991.54 | U52: 23403.36 | V52: =+V50+U52 -> 401725.08 | W52: =+Q52+U52 -> 23403.36 | X52: =+W52+X50 -> 5177386.986
A53: 4 | B53: 2005-08-01 | D53: 75099856.76 | E53: =+E52+D53 -> 2850199917 | F53: 75878971.79 | G53: =+G52+F53 -> 2815274210 | H53: -779115.0307 | I53: 34925706.87 | J53: 310.0877822 | K53: =+K52+J53 -> -23519.77938 | L53: -778804.9429 | M53: =M52+L53 -> -6434995.474 | N53: =N52+L53 -> 34902187.09 | O53: -778804.9429 | P53: =+P52+O53 -> 30126524.69 | Q53: 0 | R53: =Q53+R52 -> 4775661.906 | S53: -778804.9429 | T53: 34902186.59 | U53: 22951.23 | V53: =+V52+U53 -> 424676.31 | W53: 22951.23 | X53: =+W53+X52 -> 5200338.216
A54: 4 | B54: 2005-09-01 | D54: 77992438.76 | E54: 2928192355 | F54: 72653042.69 | G54: 2887927252 | H54: 5339396.068 | I54: 40265102.94 | J54: -2125.079635 | K54: -25644.85901 | L54: 5337270.988 | M54: -1097724.486 | N54: 40239458.08 | O54: 5337270.988 | P54: 35463795.68 | Q54: 0 | R54: 4775661.906 | S54: 5337270.988 | T54: 40239457.58 | U54: 22648.42 | V54: 447324.73 | W54: 22648.42 | X54: 5222986.636
A55: 4 | B55: 2005-10-01 | D55: 85827622.76 | E55: 3014019978 | F55: 80243629.76 | G55: 2968170882 | H55: 5583992.995 | I55: 45849095.94 | J55: -2222.429212 | K55: -27867.28823 | L55: 5581770.566 | M55: 4484046.08 | N55: 45821228.65 | O55: 4546659.492 | P55: 40010455.17 | Q55: 1035111.074 | R55: 5810772.98 | S55: 5581770.566 | T55: 45821228.15 | U55: 25445.82 | V55: 472770.55 | W55: 1060556.894 | X55: 6283543.53
A56: 4 | B56: 2005-11-01 | D56: 100834275.4 | E56: 3114854253 | F56: 101324973.1 | G56: 3069495855 | H56: -490697.73 | I56: 45358398.21 | J56: 195.2976965 | K56: -27671.99053 | L56: -490502.4323 | M56: 3993543.648 | N56: 45330726.21 | O56: -4905.024323 | P56: 40005550.14 | Q56: -485597.408 | R56: 5325175.572 | S56: -490502.4323 | T56: 45330725.71 | U56: 29671.46 | V56: 502442.01 | W56: -455925.948 | X56: 5827617.582
A57: 4 | B57: 2005-12-01 | D57: 124659147.1 | E57: 3239513401 | F57: 114228748.8 | G57: 3183724604 | H57: 10430398.31 | I57: 55788796.51 | J57: -4151.298525 | K57: -31823.28905 | L57: 10426247.01 | M57: 14419790.65 | N57: 55756973.22 | O57: 104262.4701 | P57: 40109812.61 | Q57: 10321984.54 | R57: 15647160.11 | S57: 10426247.01 | T57: 55756972.72 | U57: 29938.55 | V57: 532380.56 | W57: 10351923.09 | X57: 16179540.67
A58: 4 | B58: 2006-01-01 | D58: 104630999.2 | E58: 3344144400 | F58: 107291961.3 | G58: 3291016565 | H58: -2660962.093 | I58: 53127834.42 | J58: 1059.062913 | K58: -30764.22614 | L58: -2659903.03 | M58: 11759887.62 | N58: 53097070.19 | O58: -26599.0303 | P58: 40083213.58 | Q58: -2633303.999 | R58: 13013856.11 | S58: -2659903.03 | T58: 53097069.69 | U58: 89612.78 | V58: 621993.34 | W58: -2543691.219 | X58: 13635849.45
A59: 4 | B59: 2006-02-01 | D59: 102024029.6 | E59: 3446168429 | F59: 99805663.69 | G59: 3390822229 | H59: =D59-F59 -> 2218365.867 | I59: =H59+I58 -> 55346200.28 | J59: -633.9096151 | K59: -31398.13576 | L59: 2217731.957 | M59: 13977619.58 | N59: =L59+N58 -> 55314802.15 | O59: 22177.31957 | P59: 40105390.9 | Q59: 2195554.638 | R59: 15209410.75 | S59: 2217731.957 | T59: 55314801.65 | U59: 68094.15 | V59: 690087.49 | W59: 2263648.788 | X59: 15899498.24
A60: 4 | B60: 2006-03-01 | D60: 108508429.2 | E60: 3554676859 | F60: 101462777 | G60: 3492285006 | H60: =D60-F60 -> 7045652.218 | I60: =H60+I59 -> 62391852.5 | J60: -2804.169583 | K60: -34202.30534 | L60: 7042848.048 | M60: 21020467.63 | N60: =L60+N59 -> 62357650.2 | O60: 65326.14233 | P60: 40170717.04 | Q60: 6977521.906 | R60: 22186932.65 | S60: 7042848.048 | T60: 62357649.7 | U60: 88877.3 | V60: 778964.79 | W60: 7066399.206 | X60: 22965897.44
A61: 4 | B61: 2006-04-01 | D61: 77069135.08 | E61: 3631745994 | F61: 86590213.15 | G61: 3578875219 | H61: =D61-F61 -> -9521078.066 | I61: =H61+I60 -> 52870774.44 | J61: 3789.38907 | K61: -30412.91627 | L61: -9517288.677 | M61: 11503178.95 | N61: =L61+N60 -> 52840361.52 | O61: -90070.54862 | P61: 40080646.5 | Q61: -9427218.129 | R61: 12759714.52 | S61: -9517288.677 | T61: 52840361.02 | U61: 135673.54 | V61: 914638.33 | W61: -9291544.589 | X61: 13674352.85
A62: 4 | B62: 2006-05-01 | D62: 64132971.83 | E62: 3695878965 | F62: 82958419.82 | G62: 3661833639 | H62: =D62-F62 -> -18825447.99 | I62: =H62+I61 -> 34045326.45 | J62: 7492.528299 | K62: -22920.38797 | L62: -18817955.46 | M62: -7314776.507 | N62: =L62+N61 -> 34022406.06 | O62: -10833902.84 | P62: 29246743.65 | Q62: -7984052.618 | R62: 4775661.906 | S62: -18817955.46 | T62: 34022405.56 | U62: 69514.41 | V62: 984152.74 | W62: -7914538.208 | X62: 5759814.646
A63: 4 | B63: 2006-06-01 | D63: 73656972.34 | E63: 3769535938 | F63: 78718897.42 | G63: 3740552536 | H63: =D63-F63 -> -5061925.08 | I63: =H63+I62 -> 28983401.37 | J63: 1213.726504 | K63: -21706.66147 | L63: -5060711.354 | M63: -12375487.86 | N63: =L63+N62 -> 28961694.71 | O63: -5060711.354 | P63: 24186032.3 | Q63: 0 | R63: 4775661.906 | S63: -5060711.354 | T63: 28961694.21 | U63: 27181.97 | V63: 1011334.71 | W63: 27181.97 | X63: 5786996.616
A64: 1-4 - Cumulative Amounts | E64: =E63 -> 3769535938 | G64: =G63 -> 3740552536 | I64: =I63 -> 28983401.37 | K64: =K63 -> -21706.66147 | N64: =N63 -> 28961694.71 | P64: =P63 -> 24186032.3 | R64: =R63 -> 4775661.906 | T64: =T63 -> 28961694.21 | V64: =V63 -> 1011334.71 | X64: =X63 -> 5786996.616
D66: Actuals | F66: Baseline | H66: Difference (A) | J66: Wholesale Customer | L66: Imbalance for Sharing | O66: Company per PCA | Q66: Customer per PCA | S66: Total | U66: Interest on Customer | W66: Total Customer per PCA
D67: Actuals | E67: PCA Period | F67: Baseline | G67: PCA Period | H67: Monthly Difference | I67: PCA Period | J67: Monthly | K67: PCA Period | L67: Monthly | M67: PCA Period | O67: Monthly | P67: PCA Period | Q67: Monthly | R67: PCA Period | S67: Monthly Difference | T67: PCA Period | U67: Monthly | V67: PCA Period | W67: Monthly | X67: PCA Period
A68: 5 | B68: 2006-07-01 | D68: 73767454.87 | E68: =D68 -> 73767454.87 | F68: 89533013.27 | G68: =F68 -> 89533013.27 | H68: =D68-F68 -> -15765558.4 | I68: -15765558.4 | J68: 4661.875619 | K68: =J68 -> 4661.875619 | L68: =H68+J68 -> -15760896.53 | M68: =L68 -> -15760896.53 | O68: -12880448.26 | P68: =O68 -> -12880448.26 | Q68: -2880448.263 | R68: =+Q68 -> -2880448.263 | S68: =O68+Q68 -> -15760896.53 | T68: =+P68+R68 -> -15760896.53 | U68: 30782.95 | V68: =+U68 -> 30782.95 | W68: =+Q68+U68 -> -2849665.313 | X68: =+W68 -> -2849665.313
A69: 5 | B69: 2006-08-01 | D69: 82157751.87 | E69: =+E68+D69 -> 155925206.7 | F69: 89240945.17 | G69: =+G68+F69 -> 178773958.4 | H69: -7083193.295 | I69: -22848751.7 | J69: 2094.500257 | K69: =+K68+J69 -> 6756.375877 | L69: -7081098.795 | M69: =M68+L69 -> -22841995.32 | O69: -2403751.269 | P69: =+P68+O69 -> -15284199.53 | Q69: -4677347.526 | R69: =Q69+R68 -> -7557795.788 | S69: -7081098.795 | T69: =P69+R69 -> -22841995.32 | U69: 11466.71 | V69: =+V68+U69 -> 42249.66 | W69: -4665880.816 | X69: =+W69+X68 -> -7515546.128
A70: 5 | B70: 2006-09-01 | D70: 92776030.87 | E70: =+E69+D70 -> 248701237.6 | F70: 87713288.33 | G70: =+G69+F70 -> 266487246.8 | H70: 5062742.546 | I70: -17786009.15 | J70: -1497.052971 | K70: =+K69+J70 -> 5259.322906 | L70: 5061245.493 | M70: =M69+L70 -> -17780749.83 | O70: 1393824.618 | P70: =+P69+O70 -> -13890374.91 | Q70: 3667420.875 | R70: =Q70+R69 -> -3890374.914 | S70: 5061245.493 | T70: =P70+R70 -> -17780749.83 | U70: -16921.25 | V70: =+V69+U70 -> 25328.41 | W70: 3650499.625 | X70: =+W70+X69 -> -3865046.504
A71: 5 | B71: 2006-10-01 | D71: 109259892.9 | E71: =+E70+D71 -> 357961130.5 | F71: 97980392.84 | G71: =+G70+F71 -> 364467639.6 | H71: 11279500.03 | I71: -6506509.121 | J71: -3335.348159 | K71: =+K70+J71 -> 1923.974747 | L71: 11276164.68 | M71: =M70+L71 -> -6504585.146 | O71: 7385789.768 | P71: =+P70+O71 -> -6504585.146 | Q71: 3890374.914 | R71: =Q71+R70 -> 0 | S71: 11276164.68 | T71: =P71+R71 -> -6504585.146 | U71: 7013.72 | V71: =+V70+U71 -> 32342.13 | W71: 3897388.634 | X71: =+W71+X70 -> 32342.13
A72: 5 | B72: 2006-11-01 | D72: 111200870.8 | E72: =+E71+D72 -> 469162001.3 | F72: 112283251.7 | G72: =+G71+F72 -> 476750891.3 | H72: -1082380.927 | I72: -7588890.048 | J72: 320.0600402 | K72: =+K71+J72 -> 2244.034787 | L72: -1082060.867 | M72: =M71+L72 -> -7586646.014 | O72: -1082060.867 | P72: =+P71+O72 -> -7586646.014 | Q72: 0 | R72: =Q72+R71 -> 0 | S72: -1082060.867 | T72: =P72+R72 -> -7586646.014 | U72: 32068.89 | V72: =+V71+U72 -> 64411.02 | W72: 32068.89 | X72: =+W72+X71 -> 64411.02
A73: 5 | B73: 2006-12-01 | D73: 127256333.9 | E73: =+E72+D73 -> 596418335.2 | F73: 120338675.5 | G73: =+G72+F73 -> 597089566.8 | H73: 6917658.394 | I73: -671231.6546 | J73: -2045.551587 | K73: =+K72+J73 -> 198.4832003 | L73: 6915612.842 | M73: =M72+L73 -> -671033.1714 | O73: 6915612.842 | P73: =+P72+O73 -> -671033.1714 | Q73: 0 | R73: =Q73+R72 -> 0 | S73: 6915612.842 | T73: =P73+R73 -> -671033.1714 | U73: 33137.86 | V73: =+V72+U73 -> 97548.88 | W73: 33137.86 | X73: =+W73+X72 -> 97548.88
A74: 1-5 - Cumulative Amounts | E74: =ROUND(E64+E73,0) -> 4365954273 | G74: =ROUND(G64+G73,0) -> 4337642103 | I74: =ROUND(I64+I73,0) -> 28312170 | K74: =ROUND(K64+K73,0) -> -21508 | N74: =ROUND(N64+M73,0) -> 28290662 | P74: =ROUND(P64+P73,0) -> 23514999 | R74: =ROUND(R64+R73,0) -> 4775662 | T74: =ROUND(T64+T73,0) -> 28290661 | V74: =ROUND(V64+V73,0) -> 1108884 | X74: =ROUND(X64+X73,0) -> 5884545
D77: Actuals | F77: Baseline | H77: Difference (A) | J77: Wholesale Customer | L77: Imbalance for Sharing | O77: Company per PCA | Q77: Customer per PCA | S77: Total | U77: Interest on Customer | W77: Total Customer per PCA
D78: Actuals | E78: PCA Period | F78: Baseline | G78: PCA Period | H78: Monthly Difference | I78: PCA Period | J78: Monthly | K78: PCA Period | L78: Monthly | M78: PCA Period | O78: Monthly (A) | P78: PCA Period (A) | Q78: Monthly (A) | R78: PCA Period (A) | S78: Monthly Difference (A) | T78: PCA Period (A) | U78: Monthly (A) | V78: PCA Period (A) | W78: Monthly (A) | X78: PCA Period (A)
A79: 6 | B79: 2007-01-01 | D79: 130313494.4 | E79: =D79 -> 130313494.4 | F79: 130173815.4 | G79: =F79 -> 130173815.4 | H79: =D79-F79 -> 139679.0723 | I79: 139679.0723 | J79: -47.23585762 | K79: =J79 -> -47.23585762 | L79: =H79+J79 -> 139631.8364 | M79: =L79 -> 139631.8364 | O79: 139631.8364 | P79: =O79 -> 139631.8364 | Q79: 0 | R79: =Q79 -> 0 | S79: =O79+Q79 -> 139631.8364 | T79: 139631.8364 | U79: 33462.34 | V79: =U79 -> 33462.34 | W79: =Q79+U79 -> 33462.34 | X79: =W79 -> 33462.34
A80: 6 | B80: 2007-02-01 | D80: 117609944.2 | E80: =E79+D80 -> 247923438.6 | F80: 105725085 | G80: =G79+F80 -> 235898900.3 | H80: 11884859.17 | I80: 12024538.24 | J80: -4337.973598 | K80: =K79+J80 -> -4385.209456 | L80: =H80+J80 -> 11880521.2 | M80: =M79+L80 -> 12020153.04 | O80: 11880521.2 | P80: =P79+O80 -> 12020153.04 | Q80: 0 | R80: =Q80+R79 -> 0 | S80: 11880521.2 | T80: 12020153.04 | U80: 30224.05 | V80: =V79+U80 -> 63686.39 | W80: =Q80+U80 -> 30224.05 | X80: =W80+X79 -> 63686.39
A81: 6 | B81: 2007-03-01 | D81: 108842911.2 | E81: =E80+D81 -> 356766349.7 | F81: 108271541.6 | G81: 344170441.9 | H81: 571369.5781 | I81: 12595907.82 | J81: -208.549896 | K81: -4593.759352 | L81: =H81+J81 -> 571161.0282 | M81: =M80+L81 -> 12591314.06 | O81: 571161.0282 | P81: =P80+O81 -> 12591314.06 | Q81: 0 | R81: 0 | S81: 571161.0282 | T81: 12591314.06 | U81: 33462.34 | V81: 97148.73 | W81: =Q81+U81 -> 33462.34 | X81: 97148.73
A82: 6 | B82: 2007-04-01 | D82: 80844751.45 | E82: =E81+D82 -> 437611101.2 | F82: 96523697 | G82: 440694138.9 | H82: -15678945.55 | I82: -3083037.728 | J82: 5722.815126 | K82: 1129.055775 | L82: =H82+J82 -> -15673222.74 | M82: =M81+L82 -> -3081908.672 | O82: -15673222.74 | P82: =P81+O82 -> -3081908.672 | Q82: 0 | R82: 0 | S82: -15673222.74 | T82: -3081908.672 | U82: 32382.91 | V82: 129531.64 | W82: =Q82+U82 -> 32382.91 | X82: 129531.64
A83: 6 | B83: 2007-05-01 | D83: 73163799.16 | E83: =E82+D83 -> 510774900.4 | F83: 91051297.41 | G83: 531745436.3 | H83: =D83-F83-1 -> -17887499.25 | I83: =E83-G83 -> -20970535.98 | J83: 6528.937227 | K83: 7657.993001 | L83: =H83+J83+1 -> -17880969.31 | M83: =M82+L83-1 -> -20962878.99 | O83: -17399530.32 | P83: =P82+O83-0.5 -> -20481439.49 | Q83: -481438.9931 | R83: -481438.9931 | S83: -17880969.31 | T83: -20962878.49 | U83: 33353.52 | V83: 162885.16 | W83: =Q83+U83 -> -448085.4731 | X83: -318553.8331
A84: 6 | B84: 2007-06-01 | D84: 79290450.16 | E84: =E83+D84-1 -> 590065349.5 | F84: 86418506.24 | G84: 618163942.6 | H84: =D84-F84 -> -7128056.077 | I84: =E84-G84 -> -28098593.06 | J84: 2601.740468 | K84: 10259.73347 | L84: =H84+J84 -> -7125454.336 | M84: =M83+L84+1 -> -28088332.32 | O84: -3562727.168 | P84: =P83+O84 -> -24044166.66 | Q84: -3562728.168 | R84: -4044167.161 | S84: =O84+Q84+1 -> -7125454.336 | T84: =P84+R84+1 -> -28088332.82 | U84: 28313.09 | V84: 191198.25 | W84: =Q84+U84+1 -> -3534414.078 | X84: -3852967.911
A85: 6 | B85: 2007-07-01 | D85: 76518472.86 | E85: =E84+D85+1 -> 666583823.4 | F85: 91349133.06 | G85: 709513075.6 | H85: -14830660.2 | I85: =E85-G85-1 -> -42929253.26 | J85: 5413.190975 | K85: 15672.92444 | L85: -14825247.01 | M85: =M84+L85-1 -> -42913580.34 | O85: -6247190.772 | P85: -30291357.43 | Q85: -8578055.241 | R85: -12622222.4 | S85: =O85+Q85-1 -> -14825247.01 | T85: =P85+R85 -> -42913579.84 | U85: 3186.6 | V85: 194384.85 | W85: =Q85+U85 -> -8574868.641 | X85: -12427836.55
A86: 6 | B86: 2007-08-01 | D86: 86187490.16 | E86: =E85+D86 -> 752771313.5 | F86: 89646970 | G86: 799160045.6 | H86: -3459479.846 | I86: =E86-G86 -> -46388732.11 | J86: 1262.710144 | K86: 16935.63459 | L86: -3458217.136 | M86: =M85+L86 -> -46371797.47 | O86: -345821.7136 | P86: -30637179.15 | Q86: -3112395.422 | R86: -15734617.82 | S86: =O86+Q86 -> -3458217.136 | T86: -46371796.97 | U86: -55683.15 | V86: 138701.7 | W86: -3168078.572 | X86: -15595915.12
A87: 6 | B87: 2007-09-01 | D87: 95038223.27 | E87: =E86+D87 -> 847809536.8 | F87: 93144340.04 | G87: 892304385.7 | H87: 1893883.228 | I87: =E87-G87 -> -44494848.88 | J87: -672.3285459 | K87: 16263.30604 | L87: 1893210.899 | M87: =M86+L87 -> -44478586.57 | O87: 189321.0899 | P87: -30447858.06 | Q87: 1703889.809 | R87: -14030728.01 | S87: =O87+Q87 -> 1893210.899 | T87: -44478586.07 | U87: -73925.6 | V87: 64776.1 | W87: 1629964.209 | X87: -13965950.91
A88: 6 | B88: 2007-10-01 | D88: 111900399.3 | E88: =E87+D88 -> 959709936.1 | F88: 107522297.8 | G88: 999826683.5 | H88: 4378101.428 | I88: =E88-G88 -> -40116747.45 | J88: -1554.226007 | K88: 14709.08003 | L88: 4376547.202 | M88: =M87+L88 -> -40102039.37 | O88: 437654.7202 | P88: -30010203.34 | Q88: 3938892.482 | R88: -10091835.53 | S88: =O88+Q88 -> 4376547.202 | T88: -40102038.87 | U88: -63958.56 | V88: 817.54 | W88: 3874933.922 | X88: -10091016.99
A89: 6 | B89: 2007-11-01 | D89: 121527866.3 | E89: =E88+D89 -> 1081237802 | F89: 117673983.2 | G89: 1117500667 | H89: 3853883.085 | I89: =E89-G89 -> -36262864.36 | J89: -1368.128495 | K89: 13340.95154 | L89: 3852514.957 | M89: =M88+L89 -> -36249524.41 | O89: 1885442.13 | P89: -28124761.21 | Q89: 1967072.826 | R89: -8124762.707 | S89: =O89+Q89 -> 3852514.957 | T89: -36249523.91 | U89: -35603.42 | V89: -34785.88 | W89: 1931469.406 | X89: -8159547.587
A90: 6 | B90: 2007-12-01 | D90: 141627517.3 | E90: =E89+D90 -> 1222865320 | F90: 135588520.5 | G90: 1253089187 | H90: 6038996.766 | I90: =E90-G90 -> -30223867.6 | J90: -2143.843852 | K90: 11197.10769 | L90: 6036852.922 | M90: =M89+L90 -> -30212671.49 | O90: 3018426.461 | P90: -25106334.75 | Q90: 3018426.461 | R90: -5106336.246 | S90: =O90+Q90 -> 6036852.922 | T90: -30212670.99 | U90: -22784.4 | V90: -57570.28 | W90: 2995642.061 | X90: -5163905.526
P91: -25106334.75
A92: 1-6 - Cumulative Amounts | E92: =E64+E73+E90 -> 5588819593 | G92: =G64+G73+G90 -> 5590731290 | I92: =I64+I73+I90 -> -1911697.885 | K92: =K64+K73+K90 -> -10311.07058 | N92: =N64+M73+M90 -> -1922009.956 | P92: =P64+P73+P90 -> -1591335.616 | R92: =R64+R73+R90 -> -330674.3398 | T92: =T64+T73+T90 -> -1922009.956 | V92: =V64+V73+V90 -> 1051313.31 | X92: =X64+X73+X90 -> 720639.9702
A94: 7 | B94: 2008-01-01 | D94: 135571915.4 | E94: =D94 -> 135571915.4 | F94: 137848115.5 | G94: =F94 -> 137848115.5 | H94: =D94-F94 -> -2276200.066 | I94: =E94-G94 -> -2276200.066 | J94: 808.0510234 | K94: =J94 -> 808.0510234 | L94: =H94+J94 -> -2275392.015 | M94: =L94 -> -2275392.015 | O94: -2275392.015 | P94: =O94 -> -2275392.015 | Q94: 0 | R94: =Q94 -> 0 | S94: =O94+Q94 -> -2275392.015 | T94: =P94+R94 -> -2275392.015 | U94: -2179.37 | V94: =U94 -> -2179.37 | W94: =Q94+U94 -> -2179.37 | X94: =W94 -> -2179.37
A95: 7 | B95: 2008-02-01 | D95: 120260949.4 | E95: =E94+D95 -> 255832864.9 | F95: 117800650.3 | G95: =G94+F95 -> 255648765.8 | H95: 2460299.125 | I95: 184099.0595 | J95: -873.4061895 | K95: =K94+J95 -> -65.35516611 | L95: 2459425.719 | M95: =M94+L95 -> 184033.7043 | O95: 2459425.719 | P95: =P94+O95 -> 184033.7043 | Q95: 0 | R95: =Q95+R94 -> 0 | S95: 2459425.719 | T95: 184033.7043 | U95: -2038.76 | V95: =V94+U95 -> -4218.13 | W95: -2038.76 | X95: =W95+X94 -> -4218.13
A96: 7 | B96: 2008-03-01 | D96: 122262804.4 | E96: 378095669.3 | F96: 120889465.7 | G96: 376538231.5 | H96: 1373338.731 | I96: 1557437.79 | J96: -487.5352494 | K96: -552.8904155 | L96: 1372851.196 | M96: 1556884.9 | O96: 1372851.196 | P96: 1556884.9 | Q96: 0 | R96: 0 | S96: 1372851.196 | T96: 1556884.9 | U96: -2179.37 | V96: -6397.5 | W96: -2179.37 | X96: -6397.5
A97: 7 | B97: 2008-04-01 | D97: 106748926.4 | E97: 484844595.8 | F97: 109488535.7 | G97: 486026767.3 | H97: -2739609.298 | I97: -1182171.508 | J97: 972.5613008 | K97: 419.6708853 | L97: -2738636.737 | M97: -1181751.837 | O97: -2738636.737 | P97: -1181751.837 | Q97: 0 | R97: 0 | S97: -2738636.737 | T97: -1181751.837 | U97: -1840 | V97: -8237.5 | W97: -1840 | X97: -8237.5
A98: 7 | B98: 2008-05-01 | D98: 78026834.44 | E98: 562871430.2 | F98: 99047042.83 | G98: 585073810.1 | H98: -21020208.39 | I98: -22202379.9 | J98: 7462.173979 | K98: 7881.844865 | L98: -21012746.22 | M98: -22194498.06 | O98: -19915497.19 | P98: -21097249.03 | Q98: -1097249.028 | R98: -1097249.028 | S98: -21012746.22 | T98: -22194498.06 | U98: -2104.85 | V98: -10342.35 | W98: -1099353.878 | X98: -1107591.378
A99: 7 | B99: 2008-06-01 | D99: 85268061.44 | E99: 648139491.6 | F99: 93626853.91 | G99: 678700664 | H99: -8358792.469 | I99: -30561172.37 | J99: 2967.371327 | K99: 10849.21619 | L99: -8355825.098 | M99: -30550323.15 | O99: -4177912.549 | P99: -25275161.58 | Q99: -4177912.549 | R99: -5275161.577 | S99: -8355825.098 | T99: -30550323.15 | U99: -8720.43 | V99: -19062.78 | W99: -4186632.979 | X99: -5294224.357
A100: 7 | B100: 2008-07-01 | D100: 84378310.44 | E100: 732517802.1 | F100: 93609618.49 | G100: 772310282.5 | H100: -9231308.054 | I100: -39792480.42 | J100: 3277.114359 | K100: 14126.33055 | L100: -9228030.94 | M100: -39778354.09 | O100: -4614015.47 | P100: -29889177.05 | Q100: -4614015.47 | R100: -9889177.047 | S100: -9228030.94 | T100: -39778354.09 | U100: -25903.92 | V100: -44966.7 | W100: -4639919.39 | X100: -9934143.747
A101: 7 | B101: 2008-08-01 | D101: 97932557.44 | E101: 830450359.5 | F101: 95078751.26 | G101: 867389033.8 | H101: 2853806.178 | I101: -36938674.25 | J101: -1013.101193 | K101: 13113.22936 | L101: 2852793.077 | M101: -36925561.02 | O101: 1426396.539 | P101: -28462780.51 | Q101: 1426396.539 | R101: -8462780.508 | S101: 2852793.077 | T101: -36925561.02 | U101: -45796.21 | V101: -90762.91 | W101: 1380600.329 | X101: -8553543.418
A102: 7 | B102: 2008-09-01 | D102: 104739444.4 | E102: 935189803.9 | F102: 91978344.34 | G102: 959367378.1 | H102: 12761100.09 | I102: -24177574.15 | J102: -4530.190533 | K102: 8583.038824 | L102: 12756569.9 | M102: -24168991.11 | O102: 6378284.951 | P102: -22084495.56 | Q102: 6378284.951 | R102: -2084495.557 | S102: 12756569.9 | T102: -24168991.11 | U102: -37379.58 | V102: -128142.49 | W102: 6340905.371 | X102: -2212638.047
A103: 7 | B103: 2008-10-01 | D103: 115174515.4 | E103: 1050364319 | F103: 108124950.3 | G103: 1067492328 | H103: 7049565.134 | I103: -17128009.02 | J103: -2502.595623 | K103: 6080.443201 | L103: 7047062.538 | M103: -17121928.58 | O103: 4962566.982 | P103: -17121928.58 | Q103: 2084495.557 | R103: 0 | S103: 7047062.538 | T103: -17121928.58 | U103: -9970.66 | V103: -138113.15 | W103: 2074524.897 | X103: -138113.15
A104: 7 | B104: 2008-11-01 | D104: 117564742.3 | E104: 1167929062 | F104: 114664738.6 | G104: 1182157067 | H104: 2900003.752 | I104: -14228005.27 | J104: -1042.870349 | K104: 5037.572852 | L104: 2898960.882 | M104: -14222967.69 | O104: 2898960.882 | P104: -14222967.69 | Q104: 0 | R104: 0 | S104: 2898960.882 | T104: -14222967.69 | U104: -1358.94 | V104: -139472.09 | W104: -1358.94 | X104: -139472.09
A105: 7 | B105: 2008-12-01 | D105: 160186129.3 | E105: 1328115191 | F105: 147723604.4 | G105: 1329880671 | H105: 12462524.96 | I105: -1765480.306 | J105: -4481.648601 | K105: 555.9242513 | L105: 12458043.31 | M105: -1764924.382 | O105: 12458043.31 | P105: -1764924.382 | Q105: 0 | R105: 0 | S105: 12458043.31 | T105: -1764924.382 | U105: -1404.24 | V105: -140876.33 | W105: -1404.24 | X105: -140876.33
A107: 1-7 - Cumulative Amounts | E107: =E74+E90+E105 -> 6916934784 | G107: =G74+G90+G105 -> 6920611962 | I107: =I74+I90+I105 -> -3677177.905 | K107: =K74+K90+K105 -> -9754.968061 | N107: =N64+M73+M90+M105 -> -3686934.338 | P107: =P74+P90+P105 -> -3356260.128 | R107: =R74+R90+R105 -> -330674.2458 | T107: =T74+T90+T105 -> -3686934.373 | V107: =V74+V90+V105 -> 910437.39 | X107: =X74+X90+X105+1 -> 579764.1442
A109: 8 | B109: 2009-01-01 | D109: 132102143.3 | E109: =D109 -> 132102143.3 | F109: 142357342.3 | G109: =F109 -> 142357342.3 | H109: =D109-F109 -> -10255198.97 | I109: =E109-G109 -> -10255198.97 | J109: 3687.8721 | K109: =J109 -> 3687.8721 | L109: =H109+J109 -> -10251511.09 | M109: =L109 -> -10251511.09 | O109: -10251511.09 | P109: =O109 -> -10251511.09 | Q109: 0 | R109: =Q109 -> 0 | S109: =O109+Q109 -> -10251511.09 | T109: =P109+R109 -> -10251511.09 | U109: -1269.43 | V109: =U109 -> -1269.43 | W109: =Q109+U109 -> -1269.43 | X109: =W109 -> -1269.43
A110: 8 | B110: 2009-02-01 | D110: 126942999.3 | E110: =E109+D110 -> 259045142.6 | F110: 121748942.6 | G110: =G109+F110 -> 264106284.9 | H110: 5194056.698 | I110: -5061142.267 | J110: -1867.834729 | K110: =K109+J110 -> 1820.037371 | L110: 5192188.863 | M110: =M109+L110 -> -5059322.23 | O110: 5192188.863 | P110: =P109+O110 -> -5059322.23 | Q110: 0 | R110: =Q110+R109 -> 0 | S110: 5192188.863 | T110: -5059322.23 | U110: -1146.58 | V110: =V109+U110 -> -2416.01 | W110: -1146.58 | X110: =W110+X109 -> -2416.01
A111: 8 | B111: 2009-03-01 | D111: 129596033.3 | E111: 388641176 | F111: 129587005 | G111: 393693289.9 | H111: 9028.349023 | I111: -5052113.918 | J111: -3.246684592 | K111: 1816.790686 | L111: 9025.102339 | M111: -5050297.128 | O111: 9025.102339 | P111: -5050297.128 | Q111: 0 | R111: 0 | S111: 9025.102339 | T111: -5050297.128 | U111: -1269.43 | V111: -3685.44 | W111: -1269.43 | X111: -3685.44
A112: 8 | B112: 2009-04-01 | D112: 103945338.3 | E112: 492586514.3 | F112: 107439486.4 | G112: 501132776.3 | H112: -3494148.123 | I112: -8546262.041 | J112: 1256.530607 | K112: 3073.321293 | L112: -3492891.593 | M112: -8543188.72 | O112: -3492891.593 | P112: -8543188.72 | Q112: 0 | R112: 0 | S112: -3492891.593 | T112: -8543188.72 | U112: -915.92 | V112: -4601.36 | W112: -915.92 | X112: -4601.36
A113: 8 | B113: 2009-05-01 | D113: 87289510.32 | E113: 579876024.6 | F113: 100022768.8 | G113: 601155545.1 | H113: -12733258.47 | I113: -21279520.51 | J113: 4579.007078 | K113: 7652.328371 | L113: -12728679.46 | M113: -21271868.18 | O113: -12092745.37 | P113: -20635934.09 | Q113: -635934.0911 | R113: -635934.0911 | S113: -12728679.46 | T113: -21271868.18 | U113: -1005.17 | V113: -5606.53 | W113: -636939.2611 | X113: -641540.6211
A114: 8 | B114: 2009-06-01 | D114: 93572695.32 | E114: 673448719.9 | F114: 94670137.36 | G114: 695825682.5 | H114: -1097442.047 | I114: -22376962.56 | J114: 394.6511344 | K114: 8046.979505 | L114: -1097047.396 | M114: -22368915.58 | O114: -548523.6978 | P114: -21184457.79 | Q114: -548523.6978 | R114: -1184457.789 | S114: -1097047.396 | T114: -22368915.58 | U114: -2728.02 | V114: -8334.55 | W114: -551251.7178 | X114: -1192792.339
A115: 8 | B115: 2009-07-01 | D115: 101039840.3 | E115: 774488560.2 | F115: 103847341.9 | G115: 799673024.4 | H115: -2807501.608 | I115: -25184464.17 | J115: 1009.605653 | K115: 9056.585159 | L115: -2806492.003 | M115: -25175407.58 | O115: -1403246.001 | P115: -22587703.79 | Q115: -1403246.001 | R115: -2587703.79 | S115: -2806492.003 | T115: -25175407.58 | U115: -4307.13 | V115: -12641.68 | W115: -1407553.131 | X115: -2600345.47
A116: 8 | B116: 2009-08-01 | D116: 100784418.3 | E116: 875272978.5 | F116: 99566731.4 | G116: 899239755.8 | H116: 1217686.919 | I116: -23966777.25 | J116: -437.892393 | K116: 8618.692766 | L116: 1217249.027 | M116: -23958158.55 | O116: 608624.5134 | P116: -21979079.28 | Q116: 608624.5134 | R116: -1979079.277 | S116: 1217249.027 | T116: -23958158.55 | U116: -8001.33 | V116: -20643.01 | W116: 600623.1834 | X116: -1999722.287
A117: 8 | B117: 2009-09-01 | D117: 109406019.3 | E117: 984678997.9 | F117: 96914436.13 | G117: 996154191.9 | H117: 12491583.19 | I117: -11475194.05 | J117: -4492.098232 | K117: 4126.594534 | L117: 12487091.09 | M117: -11471067.46 | O117: 10508011.82 | P117: -11471067.46 | Q117: 1979079.277 | R117: 0 | S117: 12487091.09 | T117: -11471067.46 | U117: -5993.67 | V117: -26636.68 | W117: 1973085.607 | X117: -26636.68
A118: 8 | B118: 2009-10-01 | D118: 128413053.3 | E118: 1113092051 | F118: 109843919.7 | G118: 1105998112 | H118: 18569133.6 | I118: 7093939.547 | J118: -6677.646134 | K118: -2551.0516 | L118: 18562455.95 | M118: 7091388.495 | O118: 18562455.95 | P118: 7091388.495 | Q118: 0 | R118: 0 | S118: 18562455.95 | T118: 7091388.495 | U118: -912.75 | V118: -27549.43 | W118: -912.75 | X118: -27549.43
A119: 8 | B119: 2009-11-01 | D119: 127377633.3 | E119: 1240469684 | F119: 119041969.2 | G119: 1225040081 | H119: 8335664.114 | I119: 15429603.66 | J119: -2997.588172 | K119: -5548.639772 | L119: 8332666.525 | M119: 15424055.02 | O119: 8332666.525 | P119: 15424055.02 | Q119: 0 | R119: 0 | S119: 8332666.525 | T119: 15424055.02 | U119: -883.3 | V119: -28432.73 | W119: -883.3 | X119: -28432.73
A120: 8 | B120: 2009-12-01 | D120: 164400268.3 | E120: 1404869953 | F120: 149548885.2 | G120: 1374588966 | H120: 14851383.14 | I120: 30280986.8 | J120: -5340.705892 | K120: -10889.34566 | L120: 14846042.44 | M120: 30270097.46 | O120: 9710993.708 | P120: 25135048.73 | Q120: 5135048.729 | R120: 5135048.729 | S120: 14846042.44 | T120: 30270097.46 | U120: -455.52 | V120: -28888.25 | W120: 5134593.209 | X120: 5106160.479
A122: 1-8 - Cumulative Amounts | E122: =E107+E120 -> 8321804736 | G122: =G107+G120 -> 8295200928 | I122: =I107+I120 -> 26603808.9 | K122: =K107+K120 -> -20644.31373 | N122: =N107+M120 -> 26583163.12 | P122: =P107+P120 -> 21778788.6 | R122: =R107+R120 -> 4804374.483 | T122: =T107+T120 -> 26583163.08 | V122: =V107+V120 -> 881549.14 | X122: =X107+X120 -> 5685924.623
D124: Actuals | F124: Baseline | H124: Difference (A) | J124: Wholesale Customer | L124: Imbalance for Sharing | O124: Company per PCA | Q124: Customer per PCA | S124: Total | U124: Interest on Customer | W124: Total Customer per PCA
D125: Monthly | E125: PCA Period | F125: Baseline | G125: PCA Period | H125: Monthly Difference | I125: PCA Period | J125: Monthly | K125: PCA Period | L125: Monthly | M125: PCA Period | O125: Monthly | P125: PCA Period | Q125: Monthly | R125: PCA Period | S125: Monthly Difference | T125: PCA Period | U125: Monthly | V125: PCA Period | W125: Monthly | X125: PCA Period
A127: 9 | B127: 2010-01-01 | D127: 134953506.3 | E127: =D127 -> 134953506.3 | F127: 126298040.1 | G127: =F127 -> 126298040.1 | H127: =D127-F127 -> 8655466.192 | I127: =E127-G127 -> 8655466.192 | J127: -3112.592197 | K127: =J127 -> -3112.592197 | L127: =H127+J127 -> 8652353.6 | M127: =L127 -> 8652353.6 | O127: 8652353.6 | P127: =O127 -> 8652353.6 | Q127: 0 | R127: =Q127 -> 0 | S127: =O127+Q127 -> 8652353.6 | T127: =P127+R127 -> 8652353.6 | U127: 13261.39 | V127: =U127 -> 13261.39 | W127: =Q127+U127 -> 13261.39 | X127: =W127 -> 13261.39
A128: 9 | B128: 2010-02-01 | D128: 127311731.3 | E128: =E127+D128 -> 262265237.6 | F128: 111110995.4 | G128: =G127+F128 -> 237409035.5 | H128: 16200735.95 | I128: 24856202.14 | J128: -5825.946655 | K128: =K127+J128 -> -8938.538852 | L128: 16194910 | M128: =M127+L128 -> 24847263.6 | O128: 13771278.2 | P128: =P127+O128 -> 22423631.8 | Q128: 2423631.801 | R128: =Q128+R127 -> 2423631.801 | S128: 16194910 | T128: 24847263.6 | U128: 12193.83 | V128: =V127+U128 -> 25455.22 | W128: 2435825.631 | X128: =W128+X127 -> 2449087.021
A129: 9 | B129: 2010-03-01 | D129: 129436684.3 | E129: 391701922 | F129: 118436669.3 | G129: 355845704.8 | H129: 11000015.02 | I129: 35856217.16 | J129: -3955.715402 | K129: -12894.25425 | L129: 10996059.31 | M129: 35843322.91 | O129: 5498029.653 | P129: 27921661.45 | Q129: 5498029.653 | R129: 7921661.454 | S129: 10996059.31 | T129: 35843322.91 | U129: 20440.83 | V129: =V128+U129 -> 45896.05 | W129: 5518470.483 | X129: 7967557.504
A130: 9 | B130: 2010-04-01 | D130: 104419583.3 | E130: 496121505.3 | F130: 110235654.2 | G130: 466081359 | H130: -5816070.893 | I130: 30040146.27 | J130: 2044.653293 | K130: -10849.60096 | L130: -5814026.239 | M130: 30029296.67 | O130: -2907013.12 | P130: 25014648.33 | Q130: -2907013.12 | R130: 5014648.334 | S130: -5814026.239 | T130: 30029296.67 | U130: 33735.37 | V130: 79631.42 | W130: -2873277.75 | X130: 5094279.754
A131: 9 | B131: 2010-05-01 | D131: 90656776.73 | E131: 586778282 | F131: 104215280.8 | G131: 570296639.8 | H131: -13558504.06 | I131: 16481642.21 | J131: 4733.273766 | K131: -6116.327194 | L131: -13553770.78 | M131: 16475525.89 | O131: -8539122.448 | P131: 16475525.89 | Q131: -5014648.334 | R131: 0 | S131: -13553770.78 | T131: 16475525.89 | U131: 26656.69 | V131: 106288.11 | W131: -4987991.644 | X131: 106288.11
A132: 9 | B132: 2010-06-01 | C132: (C) | D132: 99678045.73 | E132: 686456327.7 | F132: 90335556.64 | G132: 660632196.4 | H132: 9342489.091 | I132: 25824131.3 | J132: -3261.462942 | K132: -9377.790136 | L132: 9339227.628 | M132: 25814753.51 | O132: 6431850.871 | P132: 22907376.76 | Q132: 2907376.757 | R132: 2907376.757 | S132: 9339227.628 | T132: 25814753.51 | U132: 13092.48 | V132: 119380.59 | W132: 2920469.237 | X132: 3026757.347
A133: 9 | B133: 2010-07-01 | D133: 93519760.73 | E133: 779976088.5 | F133: 101296002.3 | G133: 761928198.7 | H133: -7776241.549 | I133: 18047889.75 | J133: 2714.685925 | K133: -6663.104211 | L133: -7773526.863 | M133: 18041226.65 | O133: -4866150.107 | P133: 18041226.65 | Q133: -2907376.757 | R133: 0 | S133: -7773526.863 | T133: 18041226.65 | U133: 21027.67 | V133: 140408.26 | W133: -2886349.087 | X133: 140408.26
A134: 9 | B134: 2010-08-01 | D134: 97662227.73 | E134: 877638316.2 | F134: 101910767.8 | G134: 863838966.5 | H134: -4248540.016 | I134: 13799349.74 | J134: 1483.165319 | K134: -5179.938892 | L134: -4247056.85 | M134: 13794169.8 | O134: -4247056.85 | P134: 13794169.8 | Q134: 0 | R134: 0 | S134: -4247056.85 | T134: 13794169.8 | U134: 13261.39 | V134: 153669.65 | W134: 13261.39 | X134: 153669.65
A135: 9 | B135: 2010-09-01 | D135: 105254060.7 | E135: 982892376.9 | F135: 97163878.74 | G135: 961002845.2 | H135: 8090182 | I135: 21889531.74 | J135: -2824.282536 | K135: -8004.221428 | L135: 8087357.717 | M135: 21881527.52 | O135: 7146593.958 | P135: 20940763.76 | Q135: 940763.7585 | R135: 940763.7585 | S135: 8087357.717 | T135: 21881527.52 | U135: 12917.37 | V135: 166587.02 | W135: 953681.1285 | X135: 1107350.779
A136: 9 | B136: 2010-10-01 | D136: 113891198.7 | E136: 1096783576 | F136: 108947212.1 | G136: 1069950057 | H136: 4943986.608 | I136: 26833518.35 | J136: -1725.945725 | K136: -9730.167153 | L136: 4942260.662 | M136: 26823788.18 | O136: 2471130.331 | P136: 23411894.09 | Q136: 2471130.331 | R136: 3411894.09 | S136: 4942260.662 | T136: 26823788.18 | U136: 16078.19 | V136: 182665.21 | W136: 2487208.521 | X136: 3594559.3
A137: 9 | B137: 2010-11-01 | D137: 127729035.4 | E137: 1224512611 | F137: 127209680.9 | G137: 1197159738 | H137: 519354.4981 | I137: 27352872.84 | J137: -181.3066553 | K137: -9911.473808 | L137: 519173.1914 | M137: 27342961.37 | O137: 259586.5957 | P137: 23671480.69 | Q137: 259586.5957 | R137: 3671480.685 | S137: 519173.1914 | T137: 27342961.37 | U137: 21970.68 | V137: 204635.89 | W137: 281557.2757 | X137: 3876116.575
A138: 9 | B138: 2010-12-01 | D138: 148516484.7 | E138: 1373029096 | F138: 139692837.5 | G138: 1336852576 | H138: 8823647.198 | I138: 36176520.04 | J138: -3080.335237 | K138: -12991.80904 | L138: 8820566.862 | M138: 36163528.23 | O138: 4410283.431 | P138: 28081764.12 | Q138: 4410283.431 | R138: 8081764.116 | S138: 8820566.862 | T138: 36163528.23 | U138: 23788.38 | V138: 228424.27 | W138: 4434071.811 | X138: 8310188.386
A140: 1-9 - Cumulative Amounts | E140: =E122+E138 -> 9694833832 | G140: =G122+G138 -> 9632053503 | I140: =I122+I138 -> 62780328.94 | K140: =K122+K138 -> -33636.12277 | N140: =N122+M138 -> 62746691.35 | P140: =P122+P138 -> 49860552.72 | R140: =R122+R138 -> 12886138.6 | T140: =T122+T138 -> 62746691.32 | V140: =V122+V138 -> 1109973.41 | X140: =X122+X138 -> 13996113.01
A142: 10 | B142: 2011-01-01 | D142: 136860616.7 | E142: =D142 -> 136860616.7 | F142: 140508766 | G142: =F142 -> 140508766 | H142: =D142-F142 -> -3648149.221 | I142: =E142-G142 -> -3648149.221 | J142: 1273.568893 | K142: =J142 -> 1273.568893 | L142: =H142+J142 -> -3646875.652 | M142: =L142 -> -3646875.652 | O142: -3646875.652 | P142: =O142 -> -3646875.652 | Q142: 0 | R142: =Q142 -> 0 | S142: =O142+Q142 -> -3646875.652 | T142: =P142+R142 -> -3646875.652 | U142: 35569.28 | V142: =U142 -> 35569.28 | W142: =Q142+U142 -> 35569.28 | X142: =W142 -> 35569.28
A143: 10 | B143: 2011-02-01 | D143: 130443863.7 | E143: =E142+D143 -> 267304480.5 | F143: 127314917.4 | G143: =G142+F143 -> 267823683.3 | H143: 3128946.363 | I143: -519202.8578 | J143: -1092.315175 | K143: =K142+J143 -> 181.2537177 | L143: 3127854.048 | M143: =M142+L143 -> -519021.6041 | O143: 3127854.048 | P143: =P142+O143 -> -519021.6041 | Q143: 0 | R143: =Q143+R142 -> 0 | S143: 3127854.048 | T143: -519021.6041 | U143: 32127.09 | V143: =V142+U143 -> 67696.37 | W143: 32127.09 | X143: =W143+X142 -> 67696.37
A144: 10 | B144: 2011-03-01 | D144: 122241271.7 | E144: 389545752.2 | F144: 126505123.4 | G144: 394328806.7 | H144: -4263851.626 | I144: -4783054.484 | J144: 1488.510603 | K144: 1669.76432 | L144: -4262363.115 | M144: -4781384.719 | O144: -4262363.115 | P144: -4781384.719 | Q144: 0 | R144: 0 | S144: -4262363.115 | T144: -4781384.719 | U144: 35569.28 | V144: 103265.65 | W144: 35569.28 | X144: 103265.65
A145: 10 | B145: 2011-04-01 | D145: 104683647.7 | E145: 494229399.9 | F145: 116015164.4 | G145: 510343971.1 | H145: -11331516.68 | I145: -16114571.16 | J145: 3955.832472 | K145: 5625.596792 | L145: -11327560.84 | M145: -16108945.56 | O145: -11327560.84 | P145: -16108945.56 | Q145: 0 | R145: 0 | S145: -11327560.84 | T145: -16108945.56 | U145: 34421.88 | V145: 137687.53 | W145: 34421.88 | X145: 137687.53
A146: 10 | B146: 2011-05-01 | D146: 89900086.73 | E146: 584129486.7 | F146: 105909373 | G146: 616253344.1 | H146: -16009286.28 | I146: -32123857.44 | J146: 5588.841841 | K146: 11214.43863 | L146: -16003697.44 | M146: -32112643 | O146: -9947375.939 | P146: -26056321.5 | Q146: -6056321.502 | R146: -6056321.502 | S146: -16003697.44 | T146: -32112643 | U146: 35030.01 | V146: 172717.54 | W146: -6021291.492 | X146: -5883603.962
A147: 10 | B147: 2011-06-01 | D147: 99731062.73 | E147: 683860549.4 | F147: 96350816.24 | G147: 712604160.4 | H147: 3380246.492 | I147: -28743610.95 | J147: -1180.04405 | K147: 10034.39458 | L147: 3379066.448 | M147: -28733576.56 | O147: 1689533.224 | P147: -24366788.28 | Q147: 1689533.224 | R147: -4366788.278 | S147: 3379066.448 | T147: -28733576.56 | U147: 18394.47 | V147: 191112.01 | W147: 1707927.694 | X147: -4175676.268
A148: 10 | B148: 2011-07-01 | D148: 88229727.73 | E148: 772090277.1 | F148: 98167272.01 | G148: 810771432.4 | H148: -9937544.276 | I148: -38681155.23 | J148: 3469.196707 | K148: 13503.59129 | L148: -9934075.08 | M148: -38667651.63 | O148: -4967037.54 | P148: -29333825.82 | Q148: -4967037.54 | R148: -9333825.817 | S148: -9934075.08 | T148: -38667651.63 | U148: 23073.47 | V148: 214185.48 | W148: -4943964.07 | X148: -9119640.337
A149: 10 | B149: 2011-08-01 | D149: 89101046.73 | E149: 861191323.9 | F149: 96828232.38 | G149: 907599664.7 | H149: -7727185.642 | I149: -46408340.87 | J149: 2697.560508 | K149: 16201.1518 | L149: -7724488.082 | M149: -46392139.72 | O149: -1305388.154 | P149: -30639213.97 | Q149: -6419099.927 | R149: -15752925.74 | S149: -7724488.082 | T149: -46392139.72 | U149: 9233.79 | V149: 223419.27 | W149: -6409866.137 | X149: -15529506.47
A150: 10 | B150: 2011-09-01 | D150: 101359869.7 | E150: 962551193.6 | F150: 98417999.46 | G150: 1006017664 | H150: 2941870.272 | I150: -43466470.6 | J150: -1027.006912 | K150: 15174.14489 | L150: 2940843.265 | M150: -43451296.45 | O150: 294084.3265 | P150: -30345129.65 | Q150: 2646758.938 | R150: -13106166.81 | S150: 2940843.265 | T150: -43451296.45 | U150: -7422.18 | V150: 215997.09 | W150: 2639336.758 | X150: -12890169.72
A151: 10 | B151: 2011-10-01 | D151: 112528515.7 | E151: 1075079709 | F151: 108689088.7 | G151: 1114706753 | H151: 3839427.024 | I151: -39627043.57 | J151: -1340.343974 | K151: 13833.80091 | L151: 3838086.68 | M151: -39613209.77 | O151: 538524.7595 | P151: -29806604.89 | Q151: 3299561.921 | R151: -9806604.886 | S151: 3838086.68 | T151: -39613209.77 | U151: -313.54 | V151: 215683.55 | W151: 3299248.381 | X151: -9590921.336
A152: 10 | B152: 2011-11-01 | D152: 130621832.7 | E152: 1205701542 | F152: 128294165.6 | G152: 1243000918 | H152: 2327667.175 | I152: -37299376.4 | J152: -812.5886107 | K152: 13021.2123 | L152: 2326854.586 | M152: -37286355.19 | O152: 1163427.293 | P152: -28643177.59 | Q152: 1163427.293 | R152: -8643177.593 | S152: 2326854.586 | T152: -37286355.19 | U152: 8329.75 | V152: 224013.3 | W152: 1171757.043 | X152: -8419164.293
A153: 10 | B153: 2011-12-01 | D153: 145965984.7 | E153: 1351667527 | F153: 143506588.5 | G153: 1386507507 | H153: 2459396.239 | I153: -34839980.16 | J153: -858.575227 | K153: 12162.63707 | L153: 2458537.664 | M153: -34827817.52 | O153: 1229268.832 | P153: -27413908.76 | Q153: 1229268.832 | R153: -7413908.761 | S153: 2458537.664 | T153: -34827817.52 | U153: 11821.19 | V153: 235834.49 | W153: 1241090.022 | X153: -7178074.271
A155: 1-10- Cumulative Amounts | E155: =E140+E153 -> 1.104650136e+10 | G155: =G140+G153 -> 1.101856101e+10 | I155: =I140+I153 -> 27940348.78 | K155: =K140+K153 -> -21473.4857 | N155: =N140+M153 -> 27918873.83 | P155: =P140+P153 -> 22446643.96 | R155: =R140+R153 -> 5472229.838 | T155: =T140+T153 -> 27918873.79 | V155: =V140+V153 -> 1345807.9 | X155: =X140+X153 -> 6818038.738
A157: 11 | B157: 2012-01-01 | D157: 123262720.5 | E157: =D157 -> 123262720.5 | F157: 135790972.2 | G157: =F157 -> 135790972.2 | H157: =D157-F157 -> -12528251.64 | I157: =E157-G157 -> -12528251.64 | J157: 4373.612649 | K157: =J157 -> 4373.612649 | L157: =H157+J157 -> -12523878.03 | M157: =L157 -> -12523878.03 | O157: -12523878.03 | P157: =O157 -> -12523878.03 | Q157: 0 | R157: =Q157 -> 0 | S157: =O157+Q157 -> -12523878.03 | T157: =P157+R157 -> -12523878.03 | U157: 15104.85 | V157: =U157 -> 15104.85 | W157: =Q157+U157 -> 15104.85 | X157: =W157 -> 15104.85
A158: 11 | B158: 2012-02-01 | D158: 118235954.7 | E158: =E157+D158 -> 241498675.3 | F158: 120665672.4 | G158: =G157+F158 -> 256456644.5 | H158: -2429717.62 | I158: -14957969.26 | J158: 848.2144212 | K158: =K157+J158 -> 5221.82707 | L158: -2428869.406 | M158: =M157+L158 -> -14952747.44 | O158: -2428869.406 | P158: =P157+O158 -> -14952747.44 | Q158: 0 | R158: =Q158+R157 -> 0 | S158: -2428869.406 | T158: -14952747.44 | U158: 14130.34 | V158: =V157+U158 -> 29235.19 | W158: 14130.34 | X158: =W158+X157 -> 29235.19
A159: 11 | B159: 2012-03-01 | D159: 111205982.7 | E159: 352704658 | F159: 127836729.5 | G159: 384293374 | H159: -16630746.77 | I159: -31588716.04 | J159: 5805.793699 | K159: 11027.62077 | L159: -16624940.98 | M159: -31577688.42 | O159: -10836096.77 | P159: -25788844.21 | Q159: -5788844.209 | R159: -5788844.209 | S159: -16624940.98 | T159: -31577688.42 | U159: 14589.41 | V159: 43824.6 | W159: -5774254.799 | X159: -5745019.609
A160: 11 | B160: 2012-04-01 | D160: 85619305.73 | E160: 438323963.7 | F160: 104780583.9 | G160: 489073957.9 | H160: -19161278.17 | I160: -50749994.2 | J160: 6689.202208 | K160: 17716.82298 | L160: -19154588.96 | M160: -50732277.38 | O160: -5284383.529 | P160: -31073227.74 | Q160: -13870205.43 | R160: -19659049.64 | S160: -19154588.96 | T160: -50732277.38 | U160: -2080.77 | V160: 41743.83 | W160: -13872286.2 | X160: -19617305.81
A161: 11 | B161: 2012-05-01 | D161: 88333769.57 | E161: 526657733.3 | F161: 97916638.55 | G161: 586990596.5 | H161: -9582868.984 | I161: -60332863.19 | J161: 3332.581795 | K161: 21049.40477 | L161: -9579536.403 | M161: -60311813.78 | O161: -957953.6403 | P161: -32031181.38 | Q161: -8621582.762 | R161: -28280632.41 | S161: -9579536.403 | T161: -60311813.78 | U161: -39927.19 | V161: 1816.64 | W161: -8661509.952 | X161: -28278815.77
A162: 11 | B162: 2012-06-01 | D162: 93099490.72 | E162: 619757224 | F162: 90778201.36 | G162: 677768797.9 | H162: 2321289.362 | I162: -58011573.83 | J162: -805.0231506 | K162: 20244.38162 | L162: 2320484.338 | M162: -57991329.45 | O162: 232048.4338 | P162: -31799132.94 | Q162: 2088435.905 | R162: -26192196.5 | S162: 2320484.338 | T162: -57991329.45 | U162: -60740.6 | V162: -58923.96 | W162: 2027695.305 | X162: -26251120.46
A163: 11 | B163: 2012-07-01 | D163: 98008706.72 | E163: 717765930.7 | F163: 95873017.64 | G163: 773641815.5 | H163: 2135689.082 | I163: -55875884.75 | J163: -740.6569736 | K163: 19503.72465 | L163: 2134948.425 | M163: -55856381.02 | O163: 213494.8425 | P163: -31585638.1 | Q163: 1921453.582 | R163: -24270742.92 | S163: 2134948.425 | T163: -55856381.02 | U163: -57021.7 | V163: -115945.66 | W163: 1864431.882 | X163: -24386688.58
A164: 11 | B164: 2012-08-01 | D164: 100026521.7 | E164: 817792452.5 | F164: 97925915.49 | G164: 871567731 | H164: 2100606.236 | I164: -53775278.51 | J164: -728.4902426 | K164: 18775.23441 | L164: 2099877.746 | M164: -53756503.28 | O164: 209987.7746 | P164: -31375650.33 | Q164: 1889889.971 | R164: -22380852.95 | S164: 2099877.746 | T164: -53756503.28 | U164: -51720.77 | V164: -167666.43 | W164: 1838169.201 | X164: =W164+X163 -> -22548519.38
A165: 11 | B165: 2012-09-01 | D165: 103971056.7 | E165: 921763509.2 | F165: 90086183.28 | G165: 961653914.3 | H165: 13884873.45 | I165: -39890405.06 | J165: -4815.274111 | K165: 13959.96029 | L165: 13880058.17 | M165: -39876445.1 | O165: 1437427.776 | P165: -29938222.55 | Q165: 12442630.4 | R165: -9938222.552 | S165: 13880058.17 | T165: -39876445.1 | U165: -44058.97 | V165: -211725.4 | W165: 12398571.43 | X165: -10149947.95
A166: 11 | B166: 2012-10-01 | D166: 110736944.7 | E166: 1032500454 | F166: 105762923.3 | G166: 1067416838 | H166: 4974021.397 | I166: -34916383.67 | J166: -1724.99062 | K166: 12234.96967 | L166: 4972296.406 | M166: -34904148.7 | O166: 2486148.203 | P166: -27452074.35 | Q166: 2486148.203 | R166: -7452074.349 | S166: 4972296.406 | T166: -34904148.7 | U166: -12106 | V166: -223831.4 | W166: 2474042.203 | X166: -7675905.749
A167: 11 | B167: 2012-11-01 | D167: 125413021.7 | E167: 1157913476 | F167: 116823320.8 | G167: 1184240158 | H167: 8589700.955 | I167: -26326682.71 | J167: -2978.908291 | K167: 9256.061383 | L167: 8586722.046 | M167: -26317426.65 | O167: 4293361.023 | P167: -23158713.33 | Q167: 4293361.023 | R167: -3158713.325 | S167: 8586722.046 | T167: -26317426.65 | U167: -4906.34 | V167: -228737.74 | W167: 4288454.683 | X167: -3387451.065
A168: 11 | B168: 2012-12-01 | D168: 133466915.7 | E168: 1291380391 | F168: 132793819.6 | G168: 1317033978 | H168: 673096.1235 | I168: -25653586.59 | J168: -233.4297356 | K168: 9022.631647 | L168: 672862.6938 | M168: -25644563.96 | O168: 336431.3469 | P168: -22822281.98 | Q168: 336431.3469 | R168: -2822281.979 | S168: 672862.6938 | T168: -25644563.96 | U168: 6415.89 | V168: -222321.85 | W168: 342847.2369 | X168: -3044603.829
A170: 1-11- Cumulative Amounts | E170: =E155+E168 -> 1.233788175e+10 | G170: =G155+G168 -> 1.233559499e+10 | I170: =I155+I168 -> 2286762.192 | K170: =K155+K168 -> -12450.85405 | N170: =N155+M168 -> 2274309.873 | P170: =P155+P168 -> -375638.022 | R170: =R155+R168 -> 2649947.86 | T170: =T155+T168 -> 2274309.838 | V170: =V155+V168 -> 1123486.05 | X170: =X155+X168 -> 3773434.91
A172: 12 | B172: 2013-01-01 | D172: 129564185.9 | E172: =D172 -> 129564185.9 | F172: 141097103.5 | G172: =F172 -> 141097103.5 | H172: =D172-F172 -> -11532917.69 | I172: =E172-G172 -> -11532917.69 | J172: 3999.615855 | K172: =J172 -> 3999.615855 | L172: =H172+J172 -> -11528918.08 | M172: =L172 -> -11528918.08 | O172: -11528918.08 | P172: =O172 -> -11528918.08 | Q172: 0 | R172: =Q172 -> 0 | S172: =O172+Q172 -> -11528918.08 | T172: =P172+R172 -> -11528918.08 | U172: 7314.58 | V172: =U172 -> 7314.58 | W172: =Q172+U172 -> 7314.58 | X172: =W172 -> 7314.58
A173: 12 | B173: 2013-02-01 | D173: 115784534.7 | E173: =E172+D173 -> 245348720.6 | F173: 116203010.2 | G173: =G172+F173 -> 257300113.8 | H173: -418475.489 | I173: -11951393.18 | J173: 145.1272996 | K173: =K172+J173 -> 4144.743155 | L173: -418330.3617 | M173: =M172+L173 -> -11947248.44 | O173: -418330.3617 | P173: =P172+O173 -> -11947248.44 | Q173: 0 | R173: =Q173+R172 -> 0 | S173: -418330.3617 | T173: -11947248.44 | U173: 6606.71 | V173: =V172+U173 -> 13921.29 | W173: 6606.71 | X173: =W173+X172 -> 13921.29
A174: 12 | B174: 2013-03-01 | D174: 113095238.7 | E174: 358443959.3 | F174: 116447913.5 | G174: 373748027.3 | H174: -3352674.794 | I174: -15304067.97 | J174: 1162.707618 | K174: 5307.450773 | L174: -3351512.086 | M174: -15298760.52 | O174: -3351512.086 | P174: -15298760.52 | Q174: 0 | R174: 0 | S174: -3351512.086 | T174: -15298760.52 | U174: 7314.58 | V174: 21235.87 | W174: 7314.58 | X174: 21235.87
A175: 12 | B175: 2013-04-01 | D175: 90817625.72 | E175: 449261585 | F175: 104018806 | G175: =G174+F175 -> 477766833.3 | H175: -13201180.27 | I175: -28505248.25 | J175: 4578.169319 | K175: 9885.620092 | L175: -13196602.11 | M175: -28495362.63 | O175: -8948920.791 | P175: -24247681.31 | Q175: -4247681.314 | R175: -4247681.314 | S175: -13196602.11 | T175: -28495362.63 | U175: 6700.41 | V175: 27936.28 | W175: -4240980.904 | X175: -4219745.034
A176: 12 | B176: 2013-05-01 | D176: 89000892.72 | E176: 538262477.7 | F176: 97391969.16 | G176: 575158802.4 | H176: -8391076.441 | I176: -36896324.69 | J176: 2910.02531 | K176: 12795.6454 | L176: -8388166.416 | M176: -36883529.04 | O176: -4194083.208 | P176: -28441764.52 | Q176: -4194083.208 | R176: -8441764.522 | S176: -8388166.416 | T176: -36883529.04 | U176: -4783.63 | V176: 23152.65 | W176: -4198866.838 | X176: -8418611.872
A177: 12 | B177: 2013-06-01 | D177: 85948766.72 | E177: 624211244.5 | F177: 88080531.87 | G177: 663239334.3 | H177: -2131765.149 | I177: -39028089.84 | J177: 739.2961537 | K177: 13534.94156 | L177: -2131025.853 | M177: -39014554.9 | O177: -1065512.927 | P177: -29507277.45 | Q177: -1065512.927 | R177: -9507277.448 | S177: -2131025.853 | T177: -39014554.9 | U177: -15566.16 | V177: 7586.49 | W177: -1081079.087 | X177: -9499690.958
A178: 12 | B178: 2013-07-01 | D178: 90198447.72 | E178: 714409692.2 | F178: 96675912.71 | G178: 759915247 | H178: -6477464.991 | I178: -45505554.83 | J178: 2246.384859 | K178: 15781.32641 | L178: -6475218.606 | M178: -45489773.5 | O178: -1041699.902 | P178: -30548977.35 | Q178: -5433518.704 | R178: -14940796.15 | S178: -6475218.606 | T178: -45489773.5 | U178: -19411.91 | V178: -11825.42 | W178: -5452930.614 | X178: -14952621.57
A179: 12 | B179: 2013-08-01 | D179: 94750048.72 | E179: 809159740.9 | F179: 98240448.54 | G179: 858155695.6 | H179: -3490399.821 | I179: -48995954.65 | J179: 1210.470658 | K179: 16991.79707 | L179: -3489189.351 | M179: -48978962.85 | O179: -348918.9351 | P179: -30897896.29 | Q179: -3140270.415 | R179: -18081066.57 | S179: -3489189.351 | T179: -48978962.85 | U179: -34205.72 | V179: -46031.14 | W179: -3174476.135 | X179: =W179+X178 -> -18127097.71
A180: 12 | B180: 2013-09-01 | D180: 93586916.72 | E180: 902746657.6 | F180: 96029405.97 | G180: 954185101.5 | H180: -2442489.245 | I180: -51438443.9 | J180: 847.0552703 | K180: 17838.85234 | L180: -2441642.19 | M180: -51420605.04 | O180: -244164.219 | P180: -31142060.5 | Q180: -2197477.971 | R180: -20278544.54 | S180: -2441642.19 | T180: -51420605.04 | U180: -41415.78 | V180: -87446.92 | W180: -2238893.751 | X180: =W180+X179 -> -20365991.46
A181: 12 | B181: 2013-10-01 | D181: 106266574.7 | E181: 1009013232 | F181: 108546275.5 | G181: 1062731377 | H181: -2279700.767 | I181: -53718144.66 | J181: 790.600226 | K181: 18629.45257 | L181: -2278910.167 | M181: -53699515.21 | O181: -227891.0167 | P181: -31369951.52 | Q181: -2051019.15 | R181: -22329563.69 | S181: -2278910.167 | T181: -53699515.21 | U181: -48842.38 | V181: -136289.3 | W181: -2099861.53 | X181: =W181+X180 -> -22465852.99
A182: 12 | B182: 2013-11-01 | D182: 123727676.5 | E182: 1132740909 | F182: 112221913 | G182: 1174953290 | H182: 11505763.53 | I182: -42212381.13 | J182: -4150.128906 | K182: 14479.32366 | L182: 11501613.4 | M182: -42197901.81 | O182: 1150161.34 | P182: -30219790.18 | Q182: 10351452.06 | R182: -11978111.63 | S182: 11501613.4 | T182: -42197901.81 | U182: -51647.13 | V182: -187936.43 | W182: 10299804.93 | X182: =W182+X181 -> -12166048.06
A183: 12 | B183: 2013-12-01 | D183: 141362088.5 | E183: 1274102997 | F183: 137201568.7 | G183: 1312154859 | H183: 4160519.851 | I183: -38051861.28 | J183: -1500.69951 | K183: 12978.62415 | L183: 4159019.151 | M183: -38038882.66 | O183: 1200348.853 | P183: -29019441.33 | Q183: 2958670.298 | R183: -9019441.328 | S183: 4159019.151 | T183: -38038882.66 | U183: -25484.85 | V183: -213421.28 | W183: 2933185.448 | X183: =W183+X182 -> -9232862.608
A185: 1-12- Cumulative Amounts | E185: =E170+E183 -> 1.361198475e+10 | G185: =G170+G183 -> 1.364774985e+10 | I185: =I170+I183 -> -35765099.09 | K185: =K170+K183 -> 527.7701038 | N185: =N170+M183 -> -35764572.78 | P185: =P170+P183 -> -29395079.35 | R185: =R170+R183 -> -6369493.468 | T185: =T170+T183 -> -35764572.82 | V185: =V170+V183 -> 910064.77 | X185: =X170+X183 -> -5459427.698
A187: 13 | B187: 2014-01-01 | D187: 126181085.5 | E187: =D187 -> 126181085.5 | F187: 125820649.7 | G187: =F187 -> 125820649.7 | H187: =D187-F187 -> 360435.762 | I187: =E187-G187 -> 360435.762 | J187: -130.0091793 | K187: =J187 -> -130.0091793 | L187: =H187+J187 -> 360305.7528 | M187: =L187 -> 360305.7528 | O187: 360305.7528 | P187: =O187 -> 360305.7528 | Q187: 0 | R187: =Q187 -> 0 | S187: =O187+Q187 -> 360305.7528 | T187: =P187+R187 -> 360305.7528 | U187: -17581.55 | V187: =U187 -> -17581.55 | W187: =Q187+U187 -> -17581.55 | X187: =W187 -> -17581.55
A188: 13 | B188: 2014-02-01 | D188: 136695674.5 | E188: =E187+D188 -> 262876760 | F188: 116568822.7 | G188: =G187+F188 -> 242389472.4 | H188: 20126851.82 | I188: 20487287.58 | J188: -7259.755451 | K188: =K187+J188 -> -7389.76463 | L188: 20119592.06 | M188: =M187+L188 -> 20479897.82 | O188: 19879643.15 | P188: =P187+O188 -> 20239948.91 | Q188: 239948.9075 | R188: =Q188+R187 -> 239948.9075 | S188: 20119592.06 | T188: 20479897.82 | U188: -15858.74 | V188: =V187+U188 -> -33440.29 | W188: 224090.1675 | X188: =W188+X187 -> 206508.6175
A189: 13 | B189: 2014-03-01 | D189: 111391763.5 | E189: 374268523.5 | F189: 112973984.8 | G189: 355363457.2 | H189: -1582221.309 | I189: 18905066.27 | J189: 570.7072261 | K189: -6819.057404 | L189: -1581650.602 | M189: 18898247.21 | O189: -1341701.694 | P189: 18898247.21 | Q189: -239948.9075 | R189: 0 | S189: -1581650.602 | T189: 18898247.21 | U189: -16940.59 | V189: -50380.88 | W189: -256889.4975 | X189: -50380.88
A190: 13 | B190: 2014-04-01 | D190: 96575171.5 | E190: 470843695 | F190: 99028887.09 | G190: 454392344.3 | H190: -2453715.59 | I190: 16451350.68 | J190: 885.0552133 | K190: -5934.002191 | L190: -2452830.535 | M190: 16445416.68 | O190: -2452830.535 | P190: 16445416.68 | Q190: 0 | R190: 0 | S190: -2452830.535 | T190: 16445416.68 | U190: -17014.4 | V190: -67395.28 | W190: -17014.4 | X190: -67395.28
A191: 13 | B191: 2014-05-01 | D191: 93358976.5 | E191: 564202671.5 | F191: 90267222.94 | G191: 544659567.3 | H191: 3091753.562 | I191: 19543104.24 | J191: -1115.19551 | K191: -7049.1977 | L191: 3090638.367 | M191: 19536055.05 | O191: 3090638.367 | P191: 19536055.05 | Q191: 0 | R191: 0 | S191: 3090638.367 | T191: 19536055.05 | U191: -17581.55 | V191: -84976.83 | W191: -17581.55 | X191: -84976.83
A192: 13 | B192: 2014-06-01 | D192: 87527239.5 | E192: 651729911 | F192: 88851629.49 | G192: 633511196.8 | H192: -1324389.989 | I192: 18218714.25 | J192: 477.7074692 | K192: -6571.490231 | L192: -1323912.282 | M192: 18212142.76 | O192: -1323912.282 | P192: 18212142.76 | Q192: 0 | R192: 0 | S192: -1323912.282 | T192: 18212142.76 | U192: -17014.4 | V192: -101991.23 | W192: -17014.4 | X192: -101991.23
A193: 13 | B193: 2014-07-01 | D193: 96295495.5 | E193: 748025406.5 | F193: 99420909.43 | G193: 732932106.2 | H193: -3125413.924 | I193: 15093300.33 | J193: 1127.336802 | K193: -5444.153429 | L193: -3124286.587 | M193: 15087856.18 | O193: -3124286.587 | P193: 15087856.18 | Q193: 0 | R193: 0 | S193: -3124286.587 | T193: 15087856.18 | U193: -17581.55 | V193: -119572.78 | W193: -17581.55 | X193: -119572.78
A194: 13 | B194: 2014-08-01 | D194: 99122120.5 | E194: 847147527 | F194: 95837690.96 | G194: 828769797.1 | H194: 3284429.545 | I194: 18377729.87 | J194: -1184.693737 | K194: -6628.847166 | L194: 3283244.851 | M194: 18371101.03 | O194: 3283244.851 | P194: 18371101.03 | Q194: 0 | R194: 0 | S194: 3283244.851 | T194: 18371101.03 | U194: -17581.55 | V194: -137154.33 | W194: -17581.55 | X194: =W194+X193 -> -137154.33
A195: 13 | B195: 2014-09-01 | D195: 97295066.5 | E195: 944442593.5 | F195: 87806884.41 | G195: 916576681.6 | H195: 9488182.091 | I195: 27865911.97 | J195: -3422.38728 | K195: -10051.23445 | L195: 9484759.704 | M195: 27855860.73 | O195: 5556829.338 | P195: 23927930.37 | Q195: 3927930.366 | R195: 3927930.366 | S195: 9484759.704 | T195: 27855860.73 | U195: -16664.65 | V195: -153818.98 | W195: 3911265.716 | X195: =W195+X194 -> 3774111.386
A196: 13 | B196: 2014-10-01 | D196: 102212120.5 | E196: 1046654714 | F196: 96697040.49 | G196: 1013273722 | H196: 5515080.011 | I196: 33380991.98 | J196: -1989.28936 | K196: -12040.52381 | L196: 5513090.722 | M196: 33368951.45 | O196: 2756545.361 | P196: 26684475.73 | Q196: 2756545.361 | R196: 6684475.727 | S196: 5513090.722 | T196: 33368951.45 | U196: -6493.93 | V196: -160312.91 | W196: 2750051.431 | X196: =W196+X195 -> 6524162.817
A197: 13 | B197: 2014-11-01 | D197: 117974710.5 | E197: 1164629425 | F197: 113411893.8 | G197: 1126685616 | H197: 4562816.702 | I197: 37943808.68 | J197: -1645.807984 | K197: -13686.33179 | L197: 4561170.894 | M197: 37930122.35 | O197: 2280585.447 | P197: 28965061.17 | Q197: 2280585.447 | R197: 8965061.174 | S197: 4561170.894 | T197: 37930122.35 | U197: 1044.45 | V197: -159268.46 | W197: 2281629.897 | X197: =W197+X196 -> 8805792.714
A198: 13 | B198: 2014-12-01 | D198: 123344793.8 | E198: 1287974218 | F198: 121626642.9 | G198: 1248312259 | H198: 1718150.865 | I198: 39661959.54 | J198: -598.9473915 | K198: -14285.27918 | L198: 1717551.917 | M198: 39647674.26 | O198: 858775.9587 | P198: 29823837.13 | Q198: 858775.9587 | R198: 9823837.132 | S198: 1717551.917 | T198: 39647674.26 | U198: 7240.95 | V198: -152027.51 | W198: 866016.9087 | X198: =W198+X197 -> 9671809.622
A200: 1-13- Cumulative Amounts | E200: =E185+E198 -> 1.489995897e+10 | G200: =G185+G198 -> 1.489606211e+10 | I200: =I185+I198 -> 3896860.456 | K200: =K185+K198 -> -13757.50908 | N200: =N185+M198 -> 3883101.482 | P200: =P185+P198 -> 428757.7824 | R200: =R185+R198 -> 3454343.664 | T200: =T185+T198 -> 3883101.447 | V200: =V185+V198 -> 758037.26 | X200: =X185+X198 -> 4212381.924
A202: 14 | B202: 2015-01-01 | D202: 119235519.2 | E202: =D202 -> 119235519.2 | F202: 121481127.4 | G202: =F202 -> 121481127.4 | H202: =D202-F202 -> -2245608.108 | I202: =E202-G202 -> -2245608.108 | J202: 782.8189864 | K202: =J202 -> 782.8189864 | L202: =H202+J202 -> -2244825.289 | M202: =L202 -> -2244825.289 | O202: -2244825.289 | P202: =O202 -> -2244825.289 | Q202: 0 | R202: =Q202 -> 0 | S202: =O202+Q202 -> -2244825.289 | T202: =P202+R202 -> -2244825.289 | U202: 9534.94 | V202: =U202 -> 9534.94 | W202: =Q202+U202 -> 9534.94 | X202: =W202 -> 9534.94
A203: 14 | B203: 2015-02-01 | D203: 105377338.2 | E203: =E202+D203 -> 224612857.5 | F203: 100844823.7 | G203: =G202+F203 -> 222325951.1 | H203: 4532514.538 | I203: 2286906.431 | J203: -1580.034568 | K203: =K202+J203 -> -797.2155817 | L203: 4530934.504 | M203: =M202+L203 -> 2286109.215 | O203: 4530934.504 | P203: =P202+O203 -> 2286109.215 | Q203: 0 | R203: =Q203+R202 -> 0 | S203: 4530934.504 | T203: 2286109.215 | U203: 8612.2 | V203: =V202+U203 -> 18147.14 | W203: 8612.2 | X203: =W203+X202 -> 18147.14
A204: 14 | B204: 2015-03-01 | D204: 105640903.2 | E204: 330253760.7 | F204: 106071722.1 | G204: 328397673.2 | H204: -430818.9011 | I204: 1856087.529 | J204: 150.1834689 | K204: -647.0321128 | L204: -430668.7176 | M204: 1855440.497 | O204: -430668.7176 | P204: 1855440.497 | Q204: 0 | R204: 0 | S204: -430668.7176 | T204: 1855440.497 | U204: 9534.94 | V204: 27682.08 | W204: 9534.94 | X204: 27682.08
A205: 14 | B205: 2015-04-01 | D205: 95557329.25 | E205: 425811090 | F205: 99985490.99 | G205: 428383164.2 | H205: -4428161.746 | I205: -2572074.216 | J205: 1543.657185 | K205: 896.6250718 | L205: -4426618.089 | M205: -2571177.591 | O205: -4426618.089 | P205: -2571177.591 | Q205: 0 | R205: 0 | S205: -4426618.089 | T205: -2571177.591 | U205: 9227.36 | V205: 36909.44 | W205: 9227.36 | X205: 36909.44
A206: 14 | B206: 2015-05-01 | D206: 94657182.25 | E206: 520468272.2 | F206: 88865117.48 | G206: 517248281.7 | H206: 5792064.769 | I206: 3219990.553 | J206: -2019.113779 | K206: -1122.488707 | L206: 5790045.656 | M206: 3218868.064 | O206: 5790045.656 | P206: 3218868.064 | Q206: 0 | R206: 0 | S206: 5790045.656 | T206: 3218868.064 | U206: 9534.94 | V206: 46444.38 | W206: 9534.94 | X206: 46444.38
A207: 14 | B207: 2015-06-01 | D207: 94331422.25 | E207: 614799694.5 | F207: 92822917.97 | G207: 610071199.7 | H207: 1508504.28 | I207: 4728494.834 | J207: -525.8645921 | K207: -1648.353299 | L207: 1507978.416 | M207: 4726846.48 | O207: 1507978.416 | P207: 4726846.48 | Q207: 0 | R207: 0 | S207: 1507978.416 | T207: 4726846.48 | U207: 9227.36 | V207: 55671.74 | W207: 9227.36 | X207: 55671.74
A208: 14 | B208: 2015-07-01 | D208: 101097386.2 | E208: 715897080.7 | F208: 98037157.93 | G208: 708108357.6 | H208: 3060228.319 | I208: 7788723.152 | J208: -1066.795592 | K208: -2715.148891 | L208: 3059161.523 | M208: 7786008.003 | O208: 3059161.523 | P208: 7786008.003 | Q208: 0 | R208: 0 | S208: 3059161.523 | T208: 7786008.003 | U208: 9534.94 | V208: 65206.68 | W208: 9534.94 | X208: 65206.68
A209: 14 | B209: 2015-08-01 | D209: 97525273.25 | E209: 813422354 | F209: 94703196.51 | G209: 802811554.1 | H209: 2822076.737 | I209: 10610799.89 | J209: -983.7759504 | K209: -3698.924841 | L209: 2821092.961 | M209: 10607100.96 | O209: 2821092.961 | P209: 10607100.96 | Q209: 0 | R209: 0 | S209: 2821092.961 | T209: 10607100.96 | U209: 9534.94 | V209: 74741.62 | W209: 9534.94 | X209: =W209+X208 -> 74741.62
A210: 14 | B210: 2015-09-01 | D210: 90491148.25 | E210: 903913502.2 | F210: 86658978.16 | G210: 889470532.3 | H210: 3832170.085 | I210: 14442969.97 | J210: -1335.894492 | K210: -5034.819333 | L210: 3830834.191 | M210: 14437935.16 | O210: 3830834.191 | P210: 14437935.16 | Q210: 0 | R210: 0 | S210: 3830834.191 | T210: 14437935.16 | U210: 9227.36 | V210: 83968.98 | W210: 9227.36 | X210: =W210+X209 -> 83968.98
A211: 14 | B211: 2015-10-01 | D211: 97346832.15 | E211: 1001260334 | F211: 94615523.57 | G211: 984086055.8 | H211: 2731308.576 | I211: 17174278.55 | J211: -952.1341698 | K211: -5986.953503 | L211: 2730356.442 | M211: 17168291.6 | O211: 2730356.442 | P211: 17168291.6 | Q211: 0 | R211: 0 | S211: 2730356.442 | T211: 17168291.6 | U211: 9534.94 | V211: 93503.92 | W211: 9534.94 | X211: =W211+X210 -> 93503.92
A212: 14 | B212: 2015-11-01 | D212: 113165980.2 | E212: 1114426315 | F212: 116681143.4 | G212: 1100767199 | H212: -3515163.173 | I212: 13659115.38 | J212: 1225.385882 | K212: -4761.567621 | L212: -3513937.787 | M212: 13654353.81 | O212: -3513937.787 | P212: 13654353.81 | Q212: 0 | R212: 0 | S212: -3513937.787 | T212: 13654353.81 | U212: 9227.36 | V212: 102731.28 | W212: 9227.36 | X212: =W212+X211 -> 102731.28
A213: 14 | B213: 2015-12-01 | D213: 121591637.2 | E213: 1236017952 | F213: 127014913.4 | G213: 1227782113 | H213: -5423276.109 | I213: 8235839.269 | J213: 1890.554052 | K213: -2871.013569 | L213: -5421385.555 | M213: 8232968.256 | O213: -5421385.555 | P213: 8232968.256 | Q213: 0 | R213: 0 | S213: -5421385.555 | T213: 8232968.256 | U213: 9534.94 | V213: 112266.22 | W213: 9534.94 | X213: =W213+X212 -> 112266.22
A215: 1-14 - Cumulative Amounts | E215: =E200+E213 -> 1.613597692e+10 | G215: =G200+G213 -> 1.612384422e+10 | I215: =I200+I213 -> 12132699.73 | K215: =K200+K213 -> -16628.52265 | N215: =N200+M213 -> 12116069.74 | P215: =P200+P213 -> 8661726.038 | R215: =R200+R213 -> 3454343.664 | T215: =T200+T213 -> 12116069.7 | V215: =V200+V213 -> 870303.48 | X215: =X200+X213 -> 4324648.144
A217: 15 | B217: 2016-01-01 | D217: 118037710.2 | E217: =D217 -> 118037710.2 | F217: 126240913.1 | G217: =F217 -> 126240913.1 | H217: =D217-F217 -> -8203202.854 | I217: =E217-G217 -> -8203202.854 | J217: 2859.636515 | K217: =J217 -> 2859.636515 | L217: =H217+J217 -> -8200343.218 | M217: =L217 -> -8200343.218 | O217: -8200343.218 | P217: =O217 -> -8200343.218 | Q217: 0 | R217: =Q217 -> 0 | S217: =O217+Q217 -> -8200343.218 | T217: =P217+R217 -> -8200343.218 | U217: 9534.94 | V217: =U217 -> 9534.94 | W217: =Q217+U217 -> 9534.94 | X217: =W217 -> 9534.94
A218: 15 | B218: 2016-02-01 | D218: 106321602.2 | E218: =E217+D218 -> 224359312.5 | F218: 109499535.3 | G218: =G217+F218 -> 235740448.4 | H218: -3177933.083 | I218: -11381135.94 | J218: 1107.827473 | K218: =K217+J218 -> 3967.463988 | L218: -3176825.255 | M218: =M217+L218 -> -11377168.47 | O218: -3176825.255 | P218: =P217+O218 -> -11377168.47 | Q218: 0 | R218: =Q218+R217 -> 0 | S218: -3176825.255 | T218: -11377168.47 | U218: 8919.78 | V218: =V217+U218 -> 18454.72 | W218: 8919.78 | X218: =W218+X217 -> 18454.72
A219: 15 | B219: 2016-03-01 | D219: 106720850.2 | E219: 331080162.7 | F219: 107261355.5 | G219: 343001803.9 | H219: -540505.2152 | I219: -11921641.15 | J219: 188.420118 | K219: 4155.884106 | L219: -540316.7951 | M219: -11917485.27 | O219: -540316.7951 | P219: -11917485.27 | Q219: 0 | R219: 0 | S219: -540316.7951 | T219: -11917485.27 | U219: 9534.94 | V219: 27989.66 | W219: 9534.94 | X219: 27989.66
A220: 15 | B220: 2016-04-01 | D220: 96267837.25 | E220: 427348000 | F220: 89055250.02 | G220: 432057053.9 | H220: 7212587.231 | I220: -4709053.921 | J220: -2514.307909 | K220: 1641.576197 | L220: 7210072.924 | M220: -4707412.345 | O220: 7210072.924 | P220: -4707412.345 | Q220: 0 | R220: 0 | S220: 7210072.924 | T220: -4707412.345 | U220: 9823.58 | V220: 37813.24 | W220: 9823.58 | X220: 37813.24
A221: 15 | B221: 2016-05-01 | D221: 92858077.25 | E221: 520206077.2 | F221: 89327891.5 | G221: 521384945.4 | H221: 3530185.749 | I221: -1178868.173 | J221: -1230.622752 | K221: 410.9534449 | L221: 3528955.126 | M221: -1178457.219 | O221: 3528955.126 | P221: -1178457.219 | Q221: 0 | R221: 0 | S221: 3528955.126 | T221: -1178457.219 | U221: 10151.04 | V221: 47964.28 | W221: 10151.04 | X221: 47964.28
A222: 15 | B222: 2016-06-01 | D222: 92032727.25 | E222: 612238804.5 | F222: 88009809.5 | G222: 609394754.9 | H222: 4022917.743 | I222: 2844049.571 | J222: -1402.389125 | K222: -991.4356804 | L222: 4021515.354 | M222: 2843058.135 | O222: 4021515.354 | P222: 2843058.135 | Q222: 0 | R222: 0 | S222: 4021515.354 | T222: 2843058.135 | U222: 9823.58 | V222: 57787.86 | W222: 9823.58 | X222: 57787.86
A223: 15 | B223: 2016-07-01 | D223: 88635581.25 | E223: 700874385.7 | F223: 93360634.91 | G223: 702755389.8 | H223: -4725053.659 | I223: -1881004.088 | J223: 1647.153705 | K223: 655.7180251 | L223: -4723406.505 | M223: -1880348.37 | O223: -4723406.505 | P223: -1880348.37 | Q223: 0 | R223: 0 | S223: -4723406.505 | T223: -1880348.37 | U223: 10268.39 | V223: 68056.25 | W223: 10268.39 | X223: 68056.25
A224: 15 | B224: 2016-08-01 | D224: 92024442.25 | E224: 792898828 | F224: 93864367.24 | G224: 796619757.1 | H224: -1839924.988 | I224: -3720929.076 | J224: 641.3978509 | K224: 1297.115876 | L224: -1839283.59 | M224: -3719631.96 | O224: -1839283.59 | P224: -3719631.96 | Q224: 0 | R224: 0 | S224: -1839283.59 | T224: -3719631.96 | U224: 10268.39 | V224: 78324.64 | W224: 10268.39 | X224: =W224+X223 -> 78324.64
A225: 15 | B225: 2016-09-01 | D225: 91175073.25 | E225: 884073901.2 | F225: 87819421.12 | G225: 884439178.2 | H225: 3355652.127 | I225: -365276.949 | J225: -1169.780332 | K225: 127.3355444 | L225: 3354482.347 | M225: -365149.6134 | O225: 3354482.347 | P225: -365149.6134 | Q225: 0 | R225: 0 | S225: 3354482.347 | T225: -365149.6134 | U225: 9937.15 | V225: 88261.79 | W225: 9937.15 | X225: =W225+X224 -> 88261.79
A226: 15 | B226: 2016-10-01 | D226: 99767106.25 | E226: 983841007.5 | F226: 98497101.19 | G226: 982936279.4 | H226: 1270005.053 | I226: 904728.1037 | J226: -442.7237613 | K226: -315.3882169 | L226: 1269562.329 | M226: 904412.7155 | O226: 1269562.329 | P226: 904412.7155 | Q226: 0 | R226: 0 | S226: 1269562.329 | T226: 904412.7155 | U226: 10268.39 | V226: 98530.18 | W226: 10268.39 | X226: =W226+X225 -> 98530.18
A227: 15 | B227: 2016-11-01 | D227: 108304361.2 | E227: 1092145369 | F227: 100898060.8 | G227: 1083834340 | H227: 7406300.423 | I227: 8311028.527 | J227: -2581.836327 | K227: -2897.224544 | L227: 7403718.587 | M227: 8308131.302 | O227: 7403718.587 | P227: 8308131.302 | Q227: 0 | R227: 0 | S227: 7403718.587 | T227: 8308131.302 | U227: 9937.15 | V227: 108467.33 | W227: 9937.15 | X227: =W227+X226 -> 108467.33
A228: 15 | B228: 2016-12-01 | D228: 128451174.2 | E228: 1220596543 | F228: 134703103 | G228: 1218537443 | H228: -6251928.703 | I228: 2059099.824 | J228: 2179.422346 | K228: -717.8021986 | L228: -6249749.28 | M228: 2058382.022 | O228: -6249749.28 | P228: 2058382.022 | Q228: 0 | R228: 0 | S228: -6249749.28 | T228: 2058382.022 | U228: 10268.39 | V228: 118735.72 | W228: 10268.39 | X228: =W228+X227 -> 118735.72
A230: 1-15 - Cumulative Amounts | E230: =E215+E228 -> 1.735657346e+10 | G230: =G215+G228 -> 1.734238166e+10 | I230: =I215+I228 -> 14191799.55 | K230: =K215+K228 -> -17346.32485 | N230: =N215+M228 -> 14174451.76 | P230: =P215+P228 -> 10720108.06 | R230: =R215+R228 -> 3454343.664 | T230: =T215+T228 -> 14174451.72 | V230: =V215+V228 -> 989039.2 | X230: =X215+X228 -> 4443383.864
A232: 16 | B232: 2017-01-01 | C232: (C) | D232: 87428880 | E232: =D232 -> 87428880 | F232: 77313609.73 | G232: =F232 -> 77313609.73 | H232: =D232-F232 -> 10115270.27 | I232: =E232-G232 -> 10115270.27 | J232: -3526.183216 | K232: =J232 -> -3526.183216 | L232: =H232+J232 -> 10111744.09 | M232: =L232 -> 10111744.09 | O232: 10111744.09 | P232: =O232 -> 10111744.09 | Q232: 0 | R232: =Q232 -> 0 | S232: =O232+Q232 -> 10111744.09 | T232: =P232+R232 -> 10111744.09 | U232: 10268.39 | V232: =U232 -> 10268.39 | W232: =Q232+U232 -> 10268.39 | X232: =W232 -> 10268.39
A233: 16 | B233: 2017-02-01 | D233: 65492956 | E233: =E232+D233 -> 152921836 | F233: 64896142.46 | G233: =G232+F233 -> 142209752.2 | H233: 596813.5447 | I233: 10712083.81 | J233: -208.0492017 | K233: =K232+J233 -> -3734.232417 | L233: 596605.4955 | M233: =M232+L233 -> 10708349.58 | O233: 596605.4955 | P233: =P232+O233 -> 10708349.58 | Q233: 0 | R233: =Q233+R232 -> 0 | S233: 596605.4955 | T233: 10708349.58 | U233: 9274.68 | V233: =V232+U233 -> 19543.07 | W233: 9274.68 | X233: =W233+X232 -> 19543.07
... 68 more rows

Sheet Schedule_B
C1: Schedule B: Monthly Power Costs -- PCA PERIOD 20
C2: Revised PCA Exhibit B
C3: Subject to PCA Sharing
A4: Current | C4: UE-130617 | R4: Period
A5: Row | B5: Row1 | F5: 2021-01-01 | G5: 2021-02-01 | H5: 2021-03-01 | I5: 2021-04-01 | J5: 2021-05-01 | K5: 2021-06-01 | L5: 2021-07-01 | M5: 2021-08-01 | N5: 2021-09-01 | O5: 2021-10-01 | P5: 2021-11-01 | Q5: 2021-12-01 | R5: to Date
A6: 1
A7: 2 | C7: Total Variable Component Actual | D7: FERC Acct.
A8: 3 | B8: 2 | C8: Steam Operating Fuel | D8: 501 | F8: 4938590 | G8: 4729962 | H8: 4636765.87 | I8: 2024201 | J8: 2457921 | K8: 2541909 | L8: 0 | M8: 0 | N8: 0 | O8: 0 | P8: 0 | Q8: 0 | R8: =SUM(F8:Q8) -> 21329348.87
A9: 4 | B9: 3 | C9: Other Power Generation Fuel | D9: 547 | F9: 12597693 | G9: 15807355 | H9: 17707240.42 | I9: 16390690 | J9: 13705037 | K9: 19328766 | L9: 0 | M9: 0 | N9: 0 | O9: 0 | P9: 0 | Q9: 0 | R9: 95536781.42
A10: 5 | B10: 4 | C10: Purchased & Interchanged | D10: 555 | F10: 54206749 | G10: 53927440.54 | H10: 45249291.78 | I10: 32041904 | J10: 34534046 | K10: 49826771 | L10: 0 | M10: 0 | N10: 0 | O10: 0 | P10: 0 | Q10: 0 | R10: 269786202.3
A11: 6 | B11: 5 | C11: Purchases/Sales of Non-Core Gas | D11: 45600080, 81 | F11: -3067458 | G11: -3950358 | H11: -1355716.28 | I11: -807053 | J11: -568246 | K11: -232821 | L11: 0 | M11: 0 | N11: 0 | O11: 0 | P11: 0 | Q11: 0 | R11: -9981652.28
A12: 7 | B12: 6 | C12: Brokerage Fees | D12: 55700003 | F12: 38562 | G12: 27838 | H12: 28549.17 | I12: 44238 | J12: 64367 | K12: 87418 | L12: 0 | M12: 0 | N12: 0 | O12: 0 | P12: 0 | Q12: 0 | R12: 290972.17
A13: 8 | B13: 7 | C13: Sales to Others | D13: 447 | F13: -3529515 | G13: -9117869 | H13: -6066218.55 | I13: -6512202 | J13: -5805811 | K13: -13652436 | L13: 0 | M13: 0 | N13: 0 | O13: 0 | P13: 0 | Q13: 0 | R13: -44684051.55
A14: 9 | B14: 8 | C14: Wheeling | D14: 565 | F14: 10030707 | G14: 10678976 | H14: 10393021.07 | I14: 10518588 | J14: 10399039 | K14: 10461282 | L14: 0 | M14: 0 | N14: 0 | O14: 0 | P14: 0 | Q14: 0 | R14: 62481613.07
A15: 10 | B15: 10 | C15: Montana Electric Energy Tax | D15: 40810005 | F15: -10927 | G15: 60005 | H15: 60004 | I15: 58056 | J15: 63426 | K15: 55608 | L15: 0 | M15: 0 | N15: 0 | O15: 0 | P15: 0 | Q15: 0 | R15: 286172
A16: 11 | C16: Subtotal Variable Components | F16: =SUM(F8:F15) -> 75204401 | G16: 72163349.54 | H16: 70652937.48 | I16: 53758422 | J16: 54849779 | K16: 68416497 | L16: 0 | M16: 0 | N16: 0 | O16: 0 | P16: 0 | Q16: =SUM(Q8:Q15) -> 0 | R16: =SUM(R8:R15) -> 395045386
A17: 12
A18: 13 | C18: Adjustments
A19: 14 | B19: 9 | C19: Centralia PPA ROR Equity Adjustment | F19: 347746 | G19: 314092.8 | H19: 347278.2 | I19: 336528 | J19: 347745.6 | K19: 336528 | R19: =SUM(F19:Q19) -> 2029918.6
A20: 15 | B20: N/A | C20: Energy Imbalance Market Fixed Cost Adjustment | F20: 283872 | G20: =+F20 -> 283872 | H20: 283872 | I20: 283872 | J20: 283872 | K20: =+J20 -> 283872 | R20: =SUM(F20:Q20) -> 1703232
A21: 16 | C21: Total allowable costs | F21: =F16+F19+F20 -> 75836019 | G21: =G16+G19+G20 -> 72761314.34 | H21: =H16+H19+H20 -> 71284087.68 | I21: 54378822 | J21: 55481396.6 | K21: 69036897 | L21: 0 | M21: 0 | N21: 0 | O21: 0 | P21: 0 | Q21: 0 | R21: =R16+R19+R20 -> 398778536.6
A22: 17
A23: 18
A24: 19 | B24: 13 | C24: PCA period delivered load (Kwh) | F24: 2022779925 | G24: 2033112328 | H24: 1943792809 | I24: 1595775190 | J24: 1502441404 | K24: 1625496070 | R24: =SUM(F24:Q24) -> 10723397726
A25: 20 | C25: Green Direct - load | F25: -190082.541 | G25: -55692816.19 | H25: -49427793.01 | I25: -67173290.14 | J25: -39886487 | K25: -61005813 | R25: =SUM(F25:Q25) -> -273376281.9
C26: Green Direct - Embedded Market $/kWh | F26: 0.02655814789 | G26: 0.02469072873 | H26: 0.01835486817 | I26: 0.01467800227 | J26: 0.008169907501 | K26: 0.01314298278
A27: 21 | C27: Variable Baseline Rate
A28: 22 | B28: 14 | C28: Oct 15, 2020 - | D28: 0.034753 | F28: =F24*$D$28 -> 70297670.73 | G28: 70656752.73 | H28: =H24*$D$28 -> 67552631.49 | I28: 55457975.18 | J28: 52214346.11 | K28: 56490864.92 | L28: 0 | M28: 0 | N28: 0 | O28: 0 | P28: 0 | Q28: 0 | R28: =SUM(F28:Q28) -> 372670241.2
C29: Green Direct - $ ADJUST MENT FOR JAN - APRIL | J29: =+F25*F26+G25*G26+H25*H26+I25*I26 -> -3273354.787 | R29: =SUM(F29:Q29) -> -3273354.787
C30: Green Direct - $ ADJUST MENT FOR MAY AND JUNE | J30: =J25*J26 -> -325868.9093 | K30: =K25*K26 -> -801798.3495 | R30: =SUM(F30:Q30) -> -1127667.259
A31: 23 | B31: 15 | C31: Baseline Power Costs | F31: =SUM(F28:F30) -> 70297670.73 | G31: =SUM(G28:G30) -> 70656752.73 | H31: 67552631.49 | I31: 55457975.18 | J31: 48615122.42 | K31: 55689066.57 | L31: 0 | M31: 0 | N31: 0 | O31: 0 | P31: 0 | Q31: 0 | R31: 368269219.1
A32: 24
A33: 25 | B33: 17 | C33: Imbalance for Sharing | F33: =F21-F31 -> 5538348.266 | G33: 2104561.605 | H33: 3731456.189 | I33: -1079153.178 | J33: 6866274.183 | K33: 13347830.43 | L33: 0 | M33: 0 | N33: 0 | O33: 0 | P33: 0 | Q33: 0 | R33: 30509317.49
A34: 26 | C34: Surcharge or under recovery/(refund or over recovery) | F34: =+F33 -> 5538348.266 | G34: 2104561.605 | H34: 3731456.189 | I34: -1079153.178 | J34: 6866274.183 | K34: 13347830.43 | L34: 0 | M34: 0 | N34: 0 | O34: 0 | P34: 0 | Q34: 0 | R34: 30509317.49
A35: 27
A36: 28 | C36: Less Firm Wholesale
A37: 29 | C37: Oct 15, 2020 - | D37: 0.0003143 | F37: =F34*(1-$D$37) -> 5536607.564 | G37: =G34*(1-$D$37) -> 2103900.141 | H37: 3730283.392 | I37: -1078814 | J37: 6864116.113 | K37: 13343635.21 | L37: 0 | M37: =M34*(1-$D$37) -> 0 | N37: =N34*(1-$D$37) -> 0 | O37: =O34*(1-$D$37)*14/31 -> 0 | R37: =SUM(F37:Q37) -> 30499728.42
A38: 31
A39: 32 | C39: Gross PCA | F39: =+F37 -> 5536607.564 | G39: 2103900.141 | H39: 3730283.392 | I39: -1078814 | J39: 6864116.113 | K39: 13343635.21 | L39: 0 | M39: 0 | N39: 0 | O39: 0 | P39: 0 | Q39: 0 | R39: 30499728.42
A40: 33 | C40: Gross PCA Contra | F40: =-F39 -> -5536607.564 | G40: -2103900.141 | H40: -3730283.392 | I40: 1078814 | J40: -6864116.113 | K40: -13343635.21 | L40: 0 | M40: 0 | N40: 0 | O40: 0 | P40: 0 | Q40: 0 | R40: -30499728.42
A41: 34
A42: 35 | C42: Cumulative Gross PCA | F42: =+F39 -> 5536607.564 | G42: =+F42+G39 -> 7640507.705 | H42: =+G42+H39 -> 11370791.1 | I42: 10291977.1 | J42: 17156093.21 | K42: =+J42+K39 -> 30499728.42 | L42: 30499728.42 | M42: 30499728.42 | N42: =+M42+N39 -> 30499728.42 | O42: 30499728.42 | P42: 30499728.42 | Q42: =+P42+Q39 -> 30499728.42 | R42: =+R39 -> 30499728.42
A43: 36 | C43: Cumulative Gross PCA Contra | F43: =+F40 -> -5536607.564 | G43: =+F43+G40 -> -7640507.705 | H43: -11370791.1 | I43: -10291977.1 | J43: -17156093.21 | K43: -30499728.42 | L43: -30499728.42 | M43: -30499728.42 | N43: -30499728.42 | O43: -30499728.42 | P43: -30499728.42 | Q43: =+P43+Q40 -> -30499728.42 | R43: =+R40 -> -30499728.42
A44: 37
A45: 38
A46: 38 | C46: 1: This schedule was derived from the PCA collaborative Exhibit B which was approved in Exhibit B to Attachment A to the Settlement Stipulation approved in Order 11 of Docket UE-130617 which is also included as Exhibit A in this petition. The row numbers presented correspond to that approved exhibit.
C48: Note: Adding removal of Green Direct load for Jan'21 - Apr'21 to May'21, priced at the monthly embedded market $/kWh used in the incremental cost analysis provided by PSE in the 2019 GRC.

Sheet Lists (hidden)
A1: 1 | C1: 2020
A2: 2 | C2: 2021
A3: 3 | C3: 2022
A4: 4 | C4: 2023
A5: 5 | C5: 2024
A6: 6 | C6: 2025
A7: 7
A8: 8
A9: 9
A10: 10
A11: 11
A12: 12
